Workbook

Sheet Transition Matrices
A1: Model Inputs | H1: Transition Matrix: Treatment A | BB1: txA_cost | BC1: txA_QALY | BD1: txB_cost | BE1: txB_QALY | BK1: txA_cost | BL1: txA_QALY | BM1: txB_cost | BN1: txB_QALY | CN1: CEAC Data Table Array
AA2: Transition Matrix: Treatment B | BB2: =$R$92 -> 15360.68074 | BC2: =$V$92 -> 0.7171832665 | BD2: =$AK$92 -> 21557.22944 | BE2: =$AO$92 -> 0.8439548079 | BK2: =AVERAGE(BK9:BK10008) -> 15792.55333 | BL2: =AVERAGE(BL9:BL10008) -> 0.804301801 | BM2: =AVERAGE(BM9:BM10008) -> 21072.78567 | BN2: =AVERAGE(BN9:BN10008) -> 0.8503690104 | CN2: Number of Simulations INMB > 0 | CO2: =COUNTIF(CO9:CO10008,">0") -> 0 | CP2: =COUNTIF(CP9:CP10008,">0") -> 2 | CQ2: 326 | CR2: 1192 | CS2: 1981 | CT2: 2639 | CU2: 3044 | CV2: 3369 | CW2: 3596 | CX2: 3818
J3: SILENT | K3: ACTIVE | L3: COMPL | M3: DEAD | AC3: SILENT | AD3: ACTIVE | AE3: COMPL | AF3: DEAD | CN3: Total Number of Simulations | CO3: =COUNT(CO9:CO10008) -> 10000 | CP3: =COUNT(CP9:CP10008) -> 10000 | CQ3: 10000 | CR3: 10000 | CS3: 10000 | CT3: 10000 | CU3: 10000 | CV3: 10000 | CW3: 10000 | CX3: 10000
I4: SILENT | J4: =1-K4-L4-M4 -> 0.904 | K4: =p_active_A -> 0.088 | L4: =p_compl_sil_A -> 0.008 | M4: =p_dead_sil_A -> 0 | AB4: SILENT | AC4: =1-AD4-AE4-AF4 -> 0.8914386584 | AD4: =p_active_B -> 0.09267431598 | AE4: =p_compl_sil_B -> 0.01412180053 | AF4: =p_dead_sil_B -> 0.001765225066 | BA4: numruns | BB4: 100 | BX4: lambda (display only) | CN4: Probability (NMB_TxB > 0 and NMB_TxB = Max) | CO4: =CO2/CO3 -> 0 | CP4: =CP2/CP3 -> 0.0002 | CQ4: 0.0326 | CR4: 0.1192 | CS4: 0.1981 | CT4: 0.2639 | CU4: 0.3044 | CV4: 0.3369 | CW4: 0.3596 | CX4: 0.3818
I5: ACTIVE | J5: =p_success_A -> 0.1846153846 | K5: =1-J5-L5-M5 -> 0.6911569443 | L5: =p_compl_act_A -> 0.1230769231 | M5: =p_dead_act_A -> 0.001150747986 | AB5: ACTIVE | AC5: =p_success_B -> 0.2119047619 | AD5: =1-AC5-AE5-AF5 -> 0.6892857143 | AE5: =p_compl_act_B -> 0.09761904762 | AF5: =p_dead_act_B -> 0.00119047619 | BP5: incr_cost | BQ5: incr_QALY | BR5: ICER | BX5: =lambda -> 30000 | CN5: Probability (INMB_TxB > 0) | CO5: 0.0733 | CP5: 0.2083 | CQ5: 0.2963 | CR5: 0.3526 | CS5: 0.3895 | CT5: 0.4183 | CU5: 0.4358 | CV5: 0.452 | CW5: 0.4619 | CX5: 0.4739
I6: COMPL | J6: 0 | K6: 0 | L6: =1-M6 -> 0.9965059399 | M6: =p_dead_cmp_A -> 0.003494060098 | AB6: COMPL | AC6: 0 | AD6: 0 | AE6: =1-AF6 -> 0.9965059399 | AF6: =p_dead_cmp_B -> 0.003494060098 | AQ6: Incremental analysis | BP6: =BM2-BK2 -> 5280.232335 | BQ6: =BN2-BL2 -> 0.04606720938 | BR6: =BP6/BQ6 -> 114620.1909 | CN6: (i.e. if we have to adopt one of the two treatments)
I7: DEAD | J7: 0 | K7: 0 | L7: 0 | M7: 1 | AB7: DEAD | AC7: 0 | AD7: 0 | AE7: 0 | AF7: 1
BB8: txA_cost | BC8: txA_QALY | BD8: txB_cost | BE8: txB_QALY | BK8: txA_cost | BL8: txA_QALY | BM8: txB_cost | BN8: txB_QALY | CG8: Simulation | CH8: Incremental cost TxB | CI8: Incremental QALYs TxB | CJ8: Threshold Incremental Cost | CK8: Threshold Incremental QALY | CL8: $50K per QALY data points | CN8: CEAC Lambda Values | CO8: 5000 | CP8: 10000 | CQ8: 15000 | CR8: 20000 | CS8: 25000 | CT8: 30000 | CU8: 35000 | CV8: 40000 | CW8: 45000 | CX8: 50000
AT9: COSTS | AU9: OUTCOMES | AV9: NET BENEFIT | BA9: 1 | BB9: 12863.41138 | BC9: 1.465421538 | BD9: 20545.91168 | BE9: 0.6903923645 | BJ9: 1 | BK9: 12863.41138 | BL9: 1.465421538 | BM9: 20545.91168 | BN9: 0.6903923645 | BO9: 1 | CG9: 1 | CH9: =BM9-BK9 -> 7682.500305 | CI9: =BN9-BL9 -> -0.7750291736 | CJ9: -15000 | CK9: -0.3 | CL9: =CJ9/CK9 -> 50000 | CO9: =IF(AND((CO$8*$BL9-$BK9) <= ($BN9*CO$8-$BM9), ($BN9*CO$8-$BM9) >= 0),1,0) -> 0 | CP9: 0 | CQ9: =IF(AND((CQ$8*$BL9-$BK9) <= ($BN9*CQ$8-$BM9), ($BN9*CQ$8-$BM9) >= 0),1,0) -> 0 | CR9: 0 | CS9: 0 | CT9: 0 | CU9: 0 | CV9: 0 | CW9: 0 | CX9: 0
AR10: Treatment A | AT10: =$R$92 -> 15360.68074 | AU10: =$V$92 -> 0.7171832665 | AV10: =AU10*lambda-AT10 -> 6154.817257 | BA10: =1+BA9 -> 2 | BB10: 17129.95927 | BC10: -0.09377442305 | BD10: 21328.08054 | BE10: -0.06525133813 | BJ10: =1+BJ9 -> 2 | BK10: 17129.95927 | BL10: -0.09377442305 | BM10: 21328.08054 | BN10: -0.06525133813 | BO10: 2 | CG10: 2 | CH10: =BM10-BK10 -> 4198.121271 | CI10: 0.02852308492 | CJ10: 15000 | CK10: 0.3 | CL10: =CJ10/CK10 -> 50000 | CO10: 0 | CP10: 0 | CQ10: 0 | CR10: 0 | CS10: 0 | CT10: 0 | CU10: 0 | CV10: 0 | CW10: 0 | CX10: 0
AR11: Treatment B | AT11: =$AK$92 -> 21557.22944 | AU11: =$AO$92 -> 0.8439548079 | AV11: =AU11*lambda-AT11 -> 3761.4148 | BA11: =1+BA10 -> 3 | BB11: 17480.42182 | BC11: -0.07972388585 | BD11: 20873.29247 | BE11: 0.1120490339 | BJ11: =1+BJ10 -> 3 | BK11: 17480.42182 | BL11: -0.07972388585 | BM11: 20873.29247 | BN11: 0.1120490339 | BO11: 3 | CG11: 3 | CH11: 3392.870652 | CI11: 0.1917729198 | CO11: 0 | CP11: 0 | CQ11: 0 | CR11: 0 | CS11: 0 | CT11: 0 | CU11: 0 | CV11: 0 | CW11: 0 | CX11: 0
BA12: 4 | BB12: 14462.22094 | BC12: 0.7468232711 | BD12: 20580.737 | BE12: 0.4379593024 | BJ12: 4 | BK12: 14462.22094 | BL12: 0.7468232711 | BM12: 20580.737 | BN12: 0.4379593024 | BO12: 4 | CG12: 4 | CH12: 6118.516061 | CI12: -0.3088639686 | CO12: 0 | CP12: 0 | CQ12: 0 | CR12: 0 | CS12: 0 | CT12: 0 | CU12: 0 | CV12: 0 | CW12: 0 | CX12: 0
BA13: 5 | BB13: 15544.34219 | BC13: 1.313024309 | BD13: 21631.88063 | BE13: 1.306114338 | BJ13: 5 | BK13: 15544.34219 | BL13: 1.313024309 | BM13: 21631.88063 | BN13: 1.306114338 | BO13: 5 | CG13: 5 | CH13: =BM13-BK13 -> 6087.538439 | CI13: -0.006909971146 | CO13: 0 | CP13: 0 | CQ13: 0 | CR13: 0 | CS13: 0 | CT13: 0 | CU13: 0 | CV13: 0 | CW13: 0 | CX13: 0
AR14: Incremental | AT14: =AT11-AT10 -> 6196.548699 | BA14: 6 | BB14: 17268.5531 | BC14: -0.09228942698 | BD14: 21317.67371 | BE14: 0.3281713992 | BJ14: 6 | BK14: 17268.5531 | BL14: -0.09228942698 | BM14: 21317.67371 | BN14: 0.3281713992 | BO14: 6 | CG14: 6 | CH14: 4049.120617 | CI14: 0.4204608262 | CO14: 0 | CP14: 0 | CQ14: 0 | CR14: 0 | CS14: 0 | CT14: 0 | CU14: 0 | CV14: 0 | CW14: 0 | CX14: 0
AT15: for | AU15: =AU11-AU10 -> 0.1267715414 | AV15: QALYs | BA15: 7 | BB15: 18286.0129 | BC15: 0.4033318642 | BD15: 21673.66047 | BE15: 0.8276256674 | BJ15: 7 | BK15: 18286.0129 | BL15: 0.4033318642 | BM15: 21673.66047 | BN15: 0.8276256674 | BO15: 7 | CG15: 7 | CH15: 3387.64757 | CI15: 0.4242938032 | CO15: 0 | CP15: 0 | CQ15: 0 | CR15: 0 | CS15: 0 | CT15: 1 | CU15: 1 | CV15: 1 | CW15: 1 | CX15: 1
BA16: 8 | BB16: 16134.47851 | BC16: 1.358857658 | BD16: 21790.26686 | BE16: 1.475822144 | BJ16: 8 | BK16: 16134.47851 | BL16: 1.358857658 | BM16: 21790.26686 | BN16: 1.475822144 | BO16: 8 | CG16: 8 | CH16: 5655.788347 | CI16: 0.1169644862 | CO16: 0 | CP16: 0 | CQ16: 0 | CR16: 0 | CS16: 0 | CT16: 0 | CU16: 0 | CV16: 0 | CW16: 0 | CX16: 1
AR17: ICER | AT17: =AT14/AU15 -> 48879.65099 | AU17: per QALY | BA17: 9 | BB17: 12362.02502 | BC17: 1.870550147 | BD17: 21553.12338 | BE17: 1.14399369 | BJ17: 9 | BK17: 12362.02502 | BL17: 1.870550147 | BM17: 21553.12338 | BN17: 1.14399369 | BO17: 9 | CG17: 9 | CH17: 9191.098362 | CI17: -0.7265564574 | CO17: 0 | CP17: 0 | CQ17: 0 | CR17: 0 | CS17: 0 | CT17: 0 | CU17: 0 | CV17: 0 | CW17: 0 | CX17: 0
BA18: 10 | BB18: 17563.58691 | BC18: 0.7012450877 | BD18: 21502.36913 | BE18: 0.9212197542 | BJ18: 10 | BK18: 17563.58691 | BL18: 0.7012450877 | BM18: 21502.36913 | BN18: 0.9212197542 | BO18: 10 | CG18: 10 | CH18: 3938.782222 | CI18: 0.2199746665 | CO18: 0 | CP18: 0 | CQ18: 0 | CR18: 0 | CS18: 1 | CT18: 1 | CU18: 1 | CV18: 1 | CW18: 1 | CX18: 1
H19: TREATMENT A | AA19: TREATMENT B | BA19: 11 | BB19: 13913.86955 | BC19: 2.165746944 | BD19: 21251.54804 | BE19: 1.9716324 | BJ19: 11 | BK19: 13913.86955 | BL19: 2.165746944 | BM19: 21251.54804 | BN19: 1.9716324 | BO19: 11 | CG19: 11 | CH19: 7337.678487 | CI19: -0.1941145444 | CO19: 0 | CP19: 0 | CQ19: 0 | CR19: 0 | CS19: 0 | CT19: 0 | CU19: 0 | CV19: 0 | CW19: 0 | CX19: 0
J20: PROBABILITIES | O20: COSTS | S20: OUTCOMES | AC20: PROBABILITIES | AH20: COSTS | AL20: OUTCOMES | BA20: 12 | BB20: 15982.78478 | BC20: 0.8686943974 | BD20: 20253.92139 | BE20: 0.8022931277 | BJ20: 12 | BK20: 15982.78478 | BL20: 0.8686943974 | BM20: 20253.92139 | BN20: 0.8022931277 | BO20: 12 | CG20: 12 | CH20: 4271.136614 | CI20: -0.0664012697 | CO20: 0 | CP20: 0 | CQ20: 0 | CR20: 0 | CS20: 0 | CT20: 0 | CU20: 0 | CV20: 0 | CW20: 0 | CX20: 0
A21: PROBABILITIES | B21: Treatment A | C21: Treatment B | H21: YEARS | I21: PERIOD | J21: SILENT | K21: ACTIVE | L21: COMPL | M21: DEAD | N21: discount | O21: SILENT | P21: ACTIVE | Q21: COMPL | R21: DEAD | S21: SILENT | T21: ACTIVE | U21: COMPL | V21: DEAD | AA21: YEARS | AB21: PERIOD | AC21: SILENT | AD21: ACTIVE | AE21: COMPL | AF21: DEAD | AG21: discount | AH21: SILENT | AI21: ACTIVE | AJ21: COMPL | AK21: DEAD | AL21: SILENT | AM21: ACTIVE | AN21: COMPL | AO21: DEAD | BA21: 13 | BB21: 16507.71409 | BC21: 1.437404409 | BD21: 21351.57108 | BE21: 1.582696077 | BJ21: 13 | BK21: 16507.71409 | BL21: 1.437404409 | BM21: 21351.57108 | BN21: 1.582696077 | BO21: 13 | CG21: 13 | CH21: 4843.856988 | CI21: 0.1452916685 | CO21: 0 | CP21: 0 | CQ21: 0 | CR21: 0 | CS21: 0 | CT21: 0 | CU21: 1 | CV21: 1 | CW21: 1 | CX21: 1
A22: p_active | B22: =Parameters!D8 -> 0.088 | C22: =Parameters!D9 -> 0.09267431598 | H22: =TEXT((I22-MOD(I22-1,12))/12,"0")&"."&TEXT(MOD(I22-1,12), "00") -> 0.00 | I22: 1 | J22: 0 | K22: 1 | L22: 0 | M22: 0 | N22: 1 | O22: =c_sil_A*J22*N22 -> 0 | P22: =c_act_A*K22*N22 -> 122.4295517 | Q22: =c_compl_A*L22*N22 -> 0 | R22: =c_dead_A*M22*N22 -> 0 | S22: =u_sil*J22*N22 -> 0 | T22: =u_act*K22*N22 -> 0.05441666667 | U22: =u_compl*L22*N22 -> 0 | V22: =u_dead*M22*N22 -> 0 | AA22: =TEXT((AB22-MOD(AB22-1,12))/12,"0")&"."&TEXT(MOD(AB22-1,12), "00") -> 0.00 | AB22: 1 | AC22: 0 | AD22: 1 | AE22: 0 | AF22: 0 | AG22: 1 | AH22: =c_sil_B*AC22*AG22 -> 0 | AI22: =c_act_B*AD22*AG22 -> 484.4295517 | AJ22: =c_compl_B*AE22*AG22 -> 0 | AK22: =c_dead_B*AF22*AG22 -> 0 | AL22: =u_sil*AC22*AG22 -> 0 | AM22: =u_act*AD22*AG22 -> 0.05441666667 | AN22: =u_compl*AE22*AG22 -> 0 | AO22: =u_dead*AF22*AG22 -> 0 | BA22: 14 | BB22: 18600.85815 | BC22: 0.4450784913 | BD22: 21728.10678 | BE22: 1.073364806 | BJ22: 14 | BK22: 18600.85815 | BL22: 0.4450784913 | BM22: 21728.10678 | BN22: 1.073364806 | BO22: 14 | CG22: 14 | CH22: 3127.248634 | CI22: 0.6282863143 | CO22: 0 | CP22: 0 | CQ22: 0 | CR22: 0 | CS22: 1 | CT22: 1 | CU22: 1 | CV22: 1 | CW22: 1 | CX22: 1
A23: p_success | B23: =Parameters!D10 -> 0.1846153846 | C23: =Parameters!D11 -> 0.2119047619 | H23: =TEXT((I23-MOD(I23-1,12))/12,"0")&"."&TEXT(MOD(I23-1,12), "00") -> 0.01 | I23: =1+I22 -> 2 | J23: =MMULT(J22:M22,J$4:M$7) -> 0.1846153846 | K23: 0.6911569443 | L23: 0.1230769231 | M23: 0.001150747986 | N23: =N22 -> 1 | O23: =c_sil_A*J23*N23 -> 11.35746498 | P23: 84.61803485 | Q23: 48.86112446 | R23: 0 | S23: 0.0126 | T23: 0.03761045705 | U23: -0.001405128205 | V23: 0 | AA23: =TEXT((AB23-MOD(AB23-1,12))/12,"0")&"."&TEXT(MOD(AB23-1,12), "00") -> 0.01 | AB23: =1+AB22 -> 2 | AC23: =MMULT(AC22:AF22,AC$4:AF$7) -> 0.2119047619 | AD23: 0.6892857143 | AE23: 0.09761904762 | AF23: 0.00119047619 | AG23: =AG22 -> 1 | AH23: 89.74582042 | AI23: 333.9103696 | AJ23: 38.75443354 | AK23: 0 | AL23: 0.0144625 | AM23: 0.03750863095 | AN23: -0.001114484127 | AO23: 0 | BA23: 15 | BB23: 13165.6248 | BC23: 1.406517471 | BD23: 20946.05314 | BE23: 0.7534983338 | BJ23: 15 | BK23: 13165.6248 | BL23: 1.406517471 | BM23: 20946.05314 | BN23: 0.7534983338 | BO23: 15 | CG23: 15 | CH23: 7780.428337 | CI23: -0.6530191373 | CO23: 0 | CP23: 0 | CQ23: 0 | CR23: 0 | CS23: 0 | CT23: 0 | CU23: 0 | CV23: 0 | CW23: 0 | CX23: 0
A24: p_compl_sil | B24: =Parameters!D12 -> 0.008 | C24: =Parameters!D13 -> 0.01412180053 | H24: 0.02 | I24: =1+I23 -> 3 | J24: =MMULT(J23:M23,J$4:M$7) -> 0.2944905128 | K24: 0.4939440755 | L24: 0.2091892781 | M24: 0.002376133614 | N24: =N23 -> 1 | O24: 18.11693913 | P24: 60.47335173 | Q24: 83.04743972 | R24: 0 | S24: 0.0200989775 | T24: 0.02687879011 | U24: -0.002388244258 | V24: 0 | AA24: 0.02 | AB24: =1+AB23 -> 3 | AC24: =MMULT(AC23:AF23,AC$4:AF$7) -> 0.3349630218 | AD24: 0.4947529248 | AE24: 0.1675578525 | AF24: 0.002726200838 | AG24: =AG23 -> 1 | AH24: 141.8634057 | AI24: 239.6729376 | AJ24: 66.51990383 | AK24: 0 | AL24: 0.02286122624 | AM24: 0.02692280499 | AN24: -0.00191295215 | AO24: 0 | BA24: 16 | BB24: 13114.1367 | BC24: 0.7641632617 | BD24: 21427.31697 | BE24: 0.2882949492 | BJ24: 16 | BK24: 13114.1367 | BL24: 0.7641632617 | BM24: 21427.31697 | BN24: 0.2882949492 | BO24: 16 | CG24: 16 | CH24: 8313.180266 | CI24: -0.4758683125 | CO24: 0 | CP24: 0 | CQ24: 0 | CR24: 0 | CS24: 0 | CT24: 0 | CU24: 0 | CV24: 0 | CW24: 0 | CX24: 0
A25: p_compl_act | B25: =Parameters!D14 -> 0.1230769231 | C25: =Parameters!D15 -> 0.09761904762 | H25: 0.03 | I25: 4 | J25: =MMULT(J24:M24,J$4:M$7) -> 0.3574090991 | K25: 0.367308043 | L25: 0.2716073992 | M25: 0.003675458673 | N25: 1 | O25: 21.98766551 | P25: 44.96935905 | Q25: 107.8272239 | R25: 0 | S25: 0.02439317101 | T25: 0.01998767934 | U25: -0.003100851141 | V25: 0 | AA25: 0.03 | AB25: 4 | AC25: =MMULT(AC24:AF24,AC$4:AF$7) -> 0.4034394875 | AD25: 0.3720685921 | AE25: 0.2199999856 | AF25: 0.004491934744 | AG25: 1 | AH25: 170.8645312 | AI25: 180.2410213 | AJ25: 87.33925427 | AK25: 0 | AL25: 0.02753474502 | AM25: 0.02024673255 | AN25: -0.002511666503 | AO25: 0 | BA25: 17 | BB25: 17381.0597 | BC25: 1.245068914 | BD25: 21818.51468 | BE25: 1.441059545 | BJ25: 17 | BK25: 17381.0597 | BL25: 1.245068914 | BM25: 21818.51468 | BN25: 1.441059545 | BO25: 17 | CG25: 17 | CH25: 4437.454981 | CI25: 0.1959906311 | CO25: 0 | CP25: 0 | CQ25: =IF(AND((CQ$8*$BL25-$BK25) <= ($BN25*CQ$8-$BM25), ($BN25*CQ$8-$BM25) >= 0),1,0) -> 0 | CR25: 0 | CS25: 1 | CT25: 1 | CU25: =IF(AND((CU$8*$BL25-$BK25) <= ($BN25*CU$8-$BM25), ($BN25*CU$8-$BM25) >= 0),1,0) -> 1 | CV25: 1 | CW25: 1 | CX25: 1
A26: p_dead_sil | B26: =Parameters!D16 -> 0 | C26: =Parameters!D17 -> 0.001765225066 | H26: 0.04 | I26: 5 | J26: =MMULT(J25:M25,J$4:M$7) -> 0.3909085412 | K26: 0.2853195054 | L26: 0.3187248032 | M26: 0.00504715024 | N26: 1 | O26: 24.04853786 | P26: 34.93153913 | Q26: 126.5326748 | R26: 0 | S26: 0.02667950794 | T26: 0.01552613642 | U26: -0.003638774837 | V26: 0 | AA26: 0.04 | AB26: 5 | AC26: =MMULT(AC25:AF25,AC$4:AF$7) -> 0.4384846619 | AD26: 0.2938500438 | AE26: 0.261249566 | AF26: 0.006415728212 | AG26: 1 | AH26: 185.7068495 | AI26: 142.349645 | AJ26: 103.7151989 | AK26: 0 | AL26: 0.02992657818 | AM26: 0.01599033988 | AN26: -0.002982599212 | AO26: 0 | BA26: 18 | BB26: 15070.67878 | BC26: 1.255056175 | BD26: 20993.25752 | BE26: 1.831870677 | BJ26: 18 | BK26: 15070.67878 | BL26: 1.255056175 | BM26: 20993.25752 | BN26: 1.831870677 | BO26: 18 | CG26: 18 | CH26: 5922.57874 | CI26: 0.5768145025 | CO26: 0 | CP26: 0 | CQ26: 1 | CR26: 1 | CS26: 1 | CT26: 1 | CU26: 1 | CV26: 1 | CW26: 1 | CX26: 1
A27: p_dead_act | B27: =Parameters!D18 -> 0.001150747986 | C27: =Parameters!D19 -> 0.00119047619 | H27: 0.05 | I27: 6 | J27: =MMULT(J26:M26,J$4:M$7) -> 0.4060556914 | K27: 0.2316005091 | L27: 0.3558546747 | M27: 0.006489124704 | N27: 1 | O27: 24.98038451 | P27: 28.3547465 | Q27: 141.2731089 | R27: 0 | S27: 0.02771330094 | T27: 0.0126029277 | U27: -0.004062674203 | V27: 0 | AA27: 0.05 | AB27: 6 | AC27: =MMULT(AC26:AF26,AC$4:AF$7) -> 0.4531504024 | AD27: 0.2431829034 | AE27: 0.2952142987 | AF27: 0.008452395493 | AG27: 1 | AH27: 191.918078 | AI27: 117.8049849 | AJ27: 117.1990836 | AK27: 0 | AL27: 0.03092751496 | AM27: 0.013233203 | AN27: -0.003370363244 | AO27: 0 | BA27: 19 | BB27: 14050.80792 | BC27: 1.710498818 | BD27: 21729.70282 | BE27: 1.336830758 | BJ27: 19 | BK27: 14050.80792 | BL27: 1.710498818 | BM27: 21729.70282 | BN27: 1.336830758 | BO27: 19 | CG27: 19 | CH27: 7678.8949 | CI27: -0.3736680594 | CO27: 0 | CP27: 0 | CQ27: 0 | CR27: 0 | CS27: 0 | CT27: 0 | CU27: 0 | CV27: 0 | CW27: 0 | CX27: 0
A28: p_dead_cmp | B28: =Parameters!D20 -> 0.003494060098 | C28: =Parameters!D20 -> 0.003494060098 | H28: 0.06 | I28: 7 | J28: =MMULT(J27:M27,J$4:M$7) -> 0.4098313621 | K28: 0.195805201 | L28: 0.3863644207 | M28: 0.007999016143 | N28: 1 | O28: 25.21266227 | P28: 23.97234298 | Q28: 153.3853754 | R28: 0 | S28: 0.02797099047 | T28: 0.01065506636 | U28: -0.004410993803 | V28: 0 | AA28: 0.06 | AB28: 7 | AC28: =MMULT(AC27:AF27,AC$4:AF$7) -> 0.455487402 | AD28: 0.2096179049 | AE28: 0.3243213852 | AF28: 0.0105733079 | AG28: 1 | AH28: 192.9078432 | AI28: 101.5451077 | AJ28: 128.754499 | AK28: 0 | AL28: 0.03108701519 | AM28: 0.01140670766 | AN28: -0.003702669148 | AO28: 0 | BA28: 20 | BB28: 16788.82646 | BC28: 0.6865608056 | BD28: 21083.33118 | BE28: 0.6420575077 | BJ28: 20 | BK28: 16788.82646 | BL28: 0.6865608056 | BM28: 21083.33118 | BN28: 0.6420575077 | BO28: 20 | CG28: 20 | CH28: 4294.504723 | CI28: -0.04450329793 | CO28: 0 | CP28: 0 | CQ28: 0 | CR28: 0 | CS28: 0 | CT28: 0 | CU28: 0 | CV28: 0 | CW28: 0 | CX28: 0
H29: 0.07 | I29: 8 | J29: =MMULT(J28:M28,J$4:M$7) -> 0.4066362039 | K29: 0.1713972843 | L29: 0.4123921928 | M29: 0.009574319089 | N29: 1 | O29: 25.01609741 | P29: 20.98409268 | Q29: 163.7183133 | R29: 0 | S29: 0.02775292091 | T29: 0.009326868887 | U29: -0.004708144201 | V29: 0 | AA29: 0.07 | AB29: 8 | AC29: =MMULT(AC28:AF28,AC$4:AF$7) -> 0.4504581108 | AD29: 0.1866986107 | AE29: 0.3500831893 | AF29: 0.01276008922 | AG29: 1 | AH29: 190.7778398 | AI29: 90.44232429 | AJ29: 138.9818486 | AK29: 0 | AL29: 0.03074376606 | AM29: 0.01015951607 | AN29: -0.003996783078 | AO29: 0 | BA29: 21 | BB29: 16688.32328 | BC29: 1.020089504 | BD29: 21096.41478 | BE29: 1.092976148 | BJ29: 21 | BK29: 16688.32328 | BL29: 1.020089504 | BM29: 21096.41478 | BN29: 1.092976148 | BO29: 21 | CG29: 21 | CH29: 4408.091503 | CI29: 0.07288664459 | CO29: =IF(AND((CO$8*$BL29-$BK29) <= ($BN29*CO$8-$BM29), ($BN29*CO$8-$BM29) >= 0),1,0) -> 0 | CP29: 0 | CQ29: 0 | CR29: 0 | CS29: 0 | CT29: 0 | CU29: 0 | CV29: 0 | CW29: 0 | CX29: 0
A30: COSTS | B30: Treatment A | C30: Treatment B | H30: 0.08 | I30: 9 | J30: =MMULT(J29:M29,J$4:M$7) -> 0.3992417039 | K30: 0.1542464092 | L30: 0.4352994097 | M30: 0.01121247727 | N30: 1 | O30: 24.56119071 | P30: 18.88431873 | Q30: 172.8124014 | R30: 0 | S30: 0.02724824629 | T30: 0.008393575435 | U30: -0.00496966826 | V30: 0 | AA30: 0.08 | AB30: 9 | AC30: =MMULT(AC29:AF29,AC$4:AF$7) -> 0.4411180986 | AD30: 0.1704345825 | AE30: 0.3734465977 | AF30: 0.01500072112 | AG30: 1 | AH30: 186.8221615 | AI30: 82.56354841 | AJ30: 148.2570431 | AK30: 0 | AL30: 0.03010631023 | AM30: 0.009274481866 | AN30: -0.004263515324 | AO30: 0 | BA30: 22 | BB30: 14390.68821 | BC30: 1.301240261 | BD30: 20710.82 | BE30: 1.013699761 | BJ30: 22 | BK30: 14390.68821 | BL30: 1.301240261 | BM30: 20710.82 | BN30: 1.013699761 | BO30: 22 | CG30: 22 | CH30: 6320.131783 | CI30: -0.2875404996 | CO30: 0 | CP30: 0 | CQ30: 0 | CR30: 0 | CS30: 0 | CT30: 0 | CU30: 0 | CV30: 0 | CW30: 0 | CX30: 0
A31: SILENT | B31: =Parameters!D24+Parameters!D27 -> 61.51960197 | C31: =Parameters!D24+Parameters!D28 -> 423.519602 | H31: 0.09 | I31: 10 | J31: =MMULT(J30:M30,J$4:M$7) -> 0.3893907604 | K31: 0.1417417468 | L31: 0.4559565544 | M31: 0.01291093832 | N31: 1 | O31: 23.95516459 | P31: 17.35337852 | Q31: 181.0132184 | R31: 0 | S31: 0.0265759194 | T31: 0.007713113389 | U31: -0.005205503996 | V31: 0 | AA31: 0.09 | AB31: 10 | AC31: =MMULT(AC30:AF30,AC$4:AF$7) -> 0.4293456257 | AD31: 0.158358441 | AE31: 0.3950087963 | AF31: 0.01728713701 | AG31: 1 | AH31: 181.8362885 | AI31: 76.71350859 | AJ31: 156.8171634 | AK31: 0 | AL31: 0.02930283895 | AM31: 0.008617338498 | AN31: -0.004509683758 | AO31: 0 | BA31: 23 | BB31: 17057.05765 | BC31: 0.7032635168 | BD31: 21830.37294 | BE31: 0.8077663577 | BJ31: 23 | BK31: 17057.05765 | BL31: 0.7032635168 | BM31: 21830.37294 | BN31: 0.8077663577 | BO31: 23 | CG31: 23 | CH31: 4773.315294 | CI31: 0.1045028409 | CO31: 0 | CP31: 0 | CQ31: 0 | CR31: 0 | CS31: 0 | CT31: 0 | CU31: 0 | CV31: 0 | CW31: 0 | CX31: 1
A32: ACTIVE | B32: =Parameters!D25+Parameters!D27 -> 122.4295517 | C32: =Parameters!D25+Parameters!D28 -> 484.4295517 | H32: 0.10 | I32: 11 | J32: =MMULT(J31:M31,J$4:M$7) -> 0.3781769545 | K32: 0.1322321795 | L32: 0.474923679 | M32: 0.01466718695 | N32: 1 | O32: 23.26529572 | P32: 16.18912646 | Q32: 188.543103 | R32: 0 | S32: 0.02581057715 | T32: 0.007195634436 | U32: -0.005422045335 | V32: 0 | AA32: 0.10 | AB32: 11 | AC32: =MMULT(AC31:AF31,AC$4:AF$7) -> 0.4162921963 | AD32: 0.1489435233 | AE32: 0.4151505453 | AF32: 0.0196137351 | AG32: 1 | AH32: 176.3079053 | AI32: 72.15264422 | AJ32: 164.81337 | AK32: 0 | AL32: 0.0284119424 | AM32: 0.00810501006 | AN32: -0.004739635392 | AO32: 0 | BA32: 24 | BB32: 16365.91819 | BC32: 0.3032799242 | BD32: 21129.58114 | BE32: 0.3088312509 | BJ32: 24 | BK32: 16365.91819 | BL32: 0.3032799242 | BM32: 21129.58114 | BN32: 0.3088312509 | BO32: 24 | CG32: 24 | CH32: 4763.662947 | CI32: 0.005551326759 | CO32: 0 | CP32: 0 | CQ32: 0 | CR32: 0 | CS32: 0 | CT32: 0 | CU32: 0 | CV32: 0 | CW32: 0 | CX32: 0
A33: COMPL | B33: =Parameters!D26 -> 396.9966362 | C33: =Parameters!E26 -> 396.9966362 | H33: 0.11 | I33: 12 | J33: =MMULT(J32:M32,J$4:M$7) -> 0.3662840616 | K33: 0.1246727611 | L33: 0.4925644125 | M33: 0.01647876474 | N33: 1 | O33: 22.53364968 | P33: 15.26363026 | Q33: 195.5464149 | R33: 0 | S33: 0.0249988872 | T33: 0.006784276085 | U33: -0.00562344371 | V33: 0 | AA33: 0.11 | AB33: 12 | AC33: =MMULT(AC32:AF32,AC$4:AF$7) -> 0.4026607988 | AD33: 0.1412442374 | AE33: 0.4341185046 | AF33: 0.02197645919 | AG33: 1 | AH33: 170.5347412 | AI33: 68.4228826 | AJ33: 172.3435861 | AK33: 0 | AL33: 0.02748159952 | AM33: 0.007686040584 | AN33: -0.004956186261 | AO33: 0 | BA33: 25 | BB33: 12499.56273 | BC33: 2.060068686 | BD33: 20474.34621 | BE33: 1.671380477 | BJ33: 25 | BK33: 12499.56273 | BL33: 2.060068686 | BM33: 20474.34621 | BN33: 1.671380477 | BO33: 25 | CG33: 25 | CH33: 7974.783478 | CI33: -0.3886882096 | CO33: 0 | CP33: 0 | CQ33: 0 | CR33: 0 | CS33: 0 | CT33: 0 | CU33: 0 | CV33: 0 | CW33: 0 | CX33: 0
A34: DEAD | B34: 0 | C34: 0 | H34: 1.00 | I34: 13 | J34: =MMULT(J33:M33,J$4:M$7) -> 0.3541373014 | K34: 0.1184014421 | L34: 0.5091179752 | M34: 0.01834328133 | N34: =N22/(1+disc) -> 0.9661835749 | O34: 21.04964814 | P34: 14.00563814 | Q34: 195.2832112 | R34: 0 | S34: 0.0233525322 | T34: 0.006225132179 | U34: -0.005615874606 | V34: 0 | AA34: 1.00 | AB34: 13 | AC34: =MMULT(AC33:AF33,AC$4:AF$7) -> 0.3888777288 | AD34: 0.1346739492 | AE34: 0.4520760919 | AF34: 0.02437223017 | AG34: =AG22/(1+disc) -> 0.9661835749 | AH34: 159.1278656 | AI34: 63.03385586 | AJ34: 173.4035631 | AK34: 0 | AL34: 0.02564338646 | AM34: 0.007080683478 | AN34: -0.004986668646 | AO34: 0 | BA34: 26 | BB34: 16327.69997 | BC34: 0.5798778466 | BD34: 21807.0663 | BE34: 0.7951965232 | BJ34: 26 | BK34: 16327.69997 | BL34: 0.5798778466 | BM34: 21807.0663 | BN34: 0.7951965232 | BO34: 26 | CG34: 26 | CH34: 5479.366333 | CI34: 0.2153186766 | CO34: 0 | CP34: 0 | CQ34: 0 | CR34: 0 | CS34: 0 | CT34: 1 | CU34: 1 | CV34: 1 | CW34: 1 | CX34: 1
H35: 1.01 | I35: 14 | J35: =MMULT(J34:M34,J$4:M$7) -> 0.3419988483 | K35: 0.1129980614 | L35: 0.52474467 | M35: 0.02025842035 | N35: 0.9661835749 | O35: 20.32814784 | P35: 13.36647536 | Q35: 201.277168 | R35: 0 | S35: 0.02255209796 | T35: 0.005941041393 | U35: -0.00578824636 | V35: 0 | AA35: 1.01 | AB35: 14 | AC35: =MMULT(AC34:AF34,AC$4:AF$7) -> 0.375198692 | AD35: 0.1288678068 | AE35: 0.4691349072 | AF35: 0.02679859405 | AG35: 0.9661835749 | AH35: 153.5304354 | AI35: 60.31630324 | AJ35: 179.9468407 | AK35: 0 | AL35: 0.02474136302 | AM35: 0.006775416893 | AN35: -0.005174837544 | AO35: 0 | BA35: 27 | BB35: 13329.07878 | BC35: 1.302404214 | BD35: 21431.90367 | BE35: 0.8700032934 | BJ35: 27 | BK35: 13329.07878 | BL35: 1.302404214 | BM35: 21431.90367 | BN35: 0.8700032934 | BO35: 27 | CG35: 27 | CH35: 8102.82489 | CI35: -0.4324009204 | CO35: 0 | CP35: 0 | CQ35: 0 | CR35: 0 | CS35: 0 | CT35: 0 | CU35: 0 | CV35: 0 | CW35: 0 | CX35: 0
A36: UTILITIES | B36: Value per month (converted) | C36: Value per year (reference) | H36: 1.02 | I36: 15 | J36: =MMULT(J35:M35,J$4:M$7) -> 0.3300281394 | K36: 0.1081952935 | L36: 0.5395546251 | M36: 0.02222194206 | N36: 0.9661835749 | O36: 19.61661814 | P36: 12.79835872 | Q36: 206.9578466 | R36: 0 | S36: 0.02176272513 | T36: 0.005688528716 | U36: -0.005951608988 | V36: 0 | AA36: 1.02 | AB36: 15 | AC36: =MMULT(AC35:AF35,AC$4:AF$7) -> 0.3617743205 | AD36: 0.1235980204 | AE36: 0.4853741553 | AF36: 0.0292535038 | AG36: 0.9661835749 | AH36: 148.0372137 | AI36: 57.84979091 | AJ36: 186.1757555 | AK36: 0 | AL36: 0.02385613273 | AM36: 0.006498350024 | AN36: -0.005353966126 | AO36: 0 | BA36: 28 | BB36: 18430.29838 | BC36: 0.4603230188 | BD36: 21552.06583 | BE36: 0.9754053916 | BJ36: 28 | BK36: 18430.29838 | BL36: 0.4603230188 | BM36: 21552.06583 | BN36: 0.9754053916 | BO36: 28 | CG36: 28 | CH36: 3121.767457 | CI36: 0.5150823728 | CO36: 0 | CP36: 0 | CQ36: 0 | CR36: 0 | CS36: 1 | CT36: 1 | CU36: 1 | CV36: 1 | CW36: 1 | CX36: 1
A37: SILENT | B37: =C37/12 -> 0.06825 | C37: =Parameters!D32 -> 0.819 | H37: 1.03 | I37: 16 | J37: =MMULT(J36:M36,J$4:M$7) -> 0.3183199537 | K37: 0.1038224047 | L37: 0.5536259577 | M37: 0.02423168386 | N37: 0.9661835749 | O37: 18.92069261 | P37: 12.28109224 | Q37: 212.3552106 | R37: 0 | S37: 0.02099066362 | T37: 0.005458617574 | U37: -0.006106824171 | V37: 0 | AA37: 1.03 | AB37: 16 | AC37: =MMULT(AC36:AF36,AC$4:AF$7) -> 0.348690624 | AD37: 0.1187215374 | AE37: 0.5008526547 | AF37: 0.03173518387 | AG37: 0.9661835749 | AH37: 142.6833955 | AI37: 55.56736344 | AJ37: 192.1128687 | AK37: 0 | AL37: 0.02299336724 | AM37: 0.00624196167 | AN37: -0.005524703196 | AO37: 0 | BA37: 29 | BB37: 16098.15696 | BC37: 1.443980629 | BD37: 21040.13574 | BE37: 1.518473114 | BJ37: 29 | BK37: 16098.15696 | BL37: 1.443980629 | BM37: 21040.13574 | BN37: 1.518473114 | BO37: 29 | CG37: 29 | CH37: 4941.978778 | CI37: 0.07449248445 | CO37: 0 | CP37: 0 | CQ37: 0 | CR37: 0 | CS37: 0 | CT37: 0 | CU37: 0 | CV37: 0 | CW37: 0 | CX37: 0
A38: ACTIVE | B38: =C38/12 -> 0.05441666667 | C38: =Parameters!D33 -> 0.653 | H38: 1.04 | I38: 17 | J38: =MMULT(J37:M37,J$4:M$7) -> 0.3069284514 | K38: 0.09976973192 | L38: 0.5670162571 | M38: 0.02628555965 | N38: 0.9661835749 | O38: 18.24359049 | P38: 11.80170392 | Q38: 217.4913495 | R38: 0 | S38: 0.02023948484 | T38: 0.005245542266 | U38: -0.006254527151 | V38: 0 | AA38: 1.04 | AB38: 17 | AC38: =MMULT(AC37:AF37,AC$4:AF$7) -> 0.3359939612 | AD38: 0.1141477248 | AE38: 0.5156162683 | AF38: 0.03424204574 | AG38: 0.9661835749 | AH38: 137.4879504 | AI38: 53.42660015 | AJ38: 197.7757721 | AK38: 0 | AL38: 0.02215612353 | AM38: 0.006001486658 | AN38: -0.00568755465 | AO38: 0 | BA38: 30 | BB38: 17588.8901 | BC38: 0.3937714109 | BD38: 21138.09921 | BE38: 0.5887108216 | BJ38: 30 | BK38: 17588.8901 | BL38: 0.3937714109 | BM38: 21138.09921 | BN38: 0.5887108216 | BO38: 30 | CG38: 30 | CH38: 3549.209111 | CI38: 0.1949394108 | CO38: 0 | CP38: 0 | CQ38: 0 | CR38: 0 | CS38: 0 | CT38: 0 | CU38: 0 | CV38: 1 | CW38: 1 | CX38: 1
A39: COMPL | B39: -0.01141666667 | C39: =Parameters!D34 -> -0.137 | H39: 1.05 | I39: 18 | J39: =MMULT(J38:M38,J$4:M$7) -> 0.2958823475 | K39: 0.09596624677 | L39: 0.5797698474 | M39: 0.02838155835 | N39: 0.9661835749 | O39: 17.58701859 | P39: 11.35179186 | Q39: 222.3832649 | R39: 0 | S39: 0.01951108233 | T39: 0.005045568369 | U39: -0.006395206852 | V39: 0 | AA39: 1.05 | AB39: 18 | AC39: =MMULT(AC38:AF38,AC$4:AF$7) -> 0.3237064525 | AD39: 0.1098184066 | AE39: 0.5297025059 | AF39: 0.03677263508 | AG39: 0.9661835749 | AH39: 132.4599303 | AI39: 51.40027194 | AJ39: 203.1788532 | AK39: 0 | AL39: 0.02134586027 | AM39: 0.005773866303 | AN39: -0.005842934244 | AO39: 0 | BA39: 31 | BB39: 15053.0048 | BC39: 0.3974357306 | BD39: 21194.00928 | BE39: 0.1056630129 | BJ39: 31 | BK39: 15053.0048 | BL39: 0.3974357306 | BM39: 21194.00928 | BN39: 0.1056630129 | BO39: 31 | CG39: 31 | CH39: 6141.004484 | CI39: -0.2917727176 | CO39: 0 | CP39: 0 | CQ39: 0 | CR39: 0 | CS39: 0 | CT39: 0 | CU39: 0 | CV39: 0 | CW39: 0 | CX39: 0
A40: DEAD | B40: 0 | C40: 0 | H40: 1.06 | I40: 19 | J40: =MMULT(J39:M39,J$4:M$7) -> 0.2851944877 | K40: 0.09236538445 | L40: 0.5919223859 | M40: 0.030517742 | N40: 0.9661835749 | O40: 16.95174045 | P40: 10.92584793 | Q40: 227.0446339 | R40: 0 | S40: 0.01880630317 | T40: 0.004856247669 | U40: -0.006529256592 | V40: 0 | AA40: 1.06 | AB40: 19 | AC40: =MMULT(AC39:AF39,AC$4:AF$7) -> 0.311835489 | AD40: 0.1056955329 | AE40: 0.5431433797 | AF40: 0.03932559841 | AG40: 0.9661835749 | AH40: 127.6023596 | AI40: 49.47056966 | AJ40: 208.3343911 | AK40: 0 | AL40: 0.02056306485 | AM40: 0.005557100077 | AN40: -0.00599119509 | AO40: 0 | BA40: 32 | BB40: 17201.49166 | BC40: 0.6724937119 | BD40: 21230.82758 | BE40: 1.028476162 | BJ40: 32 | BK40: 17201.49166 | BL40: 0.6724937119 | BM40: 21230.82758 | BN40: 1.028476162 | BO40: 32 | CG40: 32 | CH40: 4029.335921 | CI40: 0.3559824499 | CO40: 0 | CP40: 0 | CQ40: 0 | CR40: 0 | CS40: 1 | CT40: 1 | CU40: 1 | CV40: 1 | CW40: 1 | CX40: 1
H41: 1.07 | I41: 20 | J41: =MMULT(J40:M40,J$4:M$7) -> 0.2748678878 | K41: 0.08893609179 | L41: 0.6035037767 | M41: 0.03269224367 | N41: 0.9661835749 | O41: 16.33793532 | P41: 10.52019889 | Q41: 231.4869269 | R41: 0 | S41: 0.01812534623 | T41: 0.004675947499 | U41: -0.006657006233 | V41: 0 | AA41: 1.07 | AB41: 20 | AC41: =MMULT(AC40:AF40,AC$4:AF$7) -> 0.3003795967 | AD41: 0.1017535615 | AE41: 0.5559671799 | AF41: 0.04189966186 | AG41: 0.9661835749 | AH41: 122.914635 | AI41: 47.62553834 | AJ41: 213.253237 | AK41: 0 | AL41: 0.01980764007 | AM41: 0.005349845061 | AN41: -0.006132649247 | AO41: 0 | BA41: 33 | BB41: 17341.26755 | BC41: -0.8749177197 | BD41: 21460.01611 | BE41: -0.2600227128 | BJ41: 33 | BK41: 17341.26755 | BL41: -0.8749177197 | BM41: 21460.01611 | BN41: -0.2600227128 | BO41: 33 | CG41: 33 | CH41: 4118.74856 | CI41: 0.6148950068 | CO41: 0 | CP41: 0 | CQ41: 0 | CR41: 0 | CS41: 0 | CT41: 0 | CU41: 0 | CV41: 0 | CW41: 0 | CX41: 0
A42: Other parameters | B42: Values | H42: 1.08 | I42: 21 | J42: =MMULT(J41:M41,J$4:M$7) -> 0.2648995414 | K42: 0.08565717157 | L42: 0.6145400219 | M42: 0.03490326516 | N42: 0.9661835749 | O42: 15.74542449 | P42: 10.13233731 | Q42: 235.7201174 | R42: 0 | S42: 0.01746801324 | T42: 0.004503553384 | U42: -0.006778742593 | V42: 0 | AA42: 1.08 | AB42: 21 | AC42: =MMULT(AC41:AF41,AC$4:AF$7) -> 0.2893320489 | AD42: 0.09797474998 | AE42: 0.5681995837 | AF42: 0.04449361738 | AG42: 0.9661835749 | AH42: 118.3940041 | AI42: 45.85687363 | AJ42: 217.94524 | AK42: 0 | AL42: 0.01907914236 | AM42: 0.005151168417 | AN42: -0.006267579949 | AO42: 0 | BA42: 34 | BB42: 14188.92686 | BC42: 0.3798448592 | BD42: 21840.293 | BE42: -0.5678198939 | BJ42: 34 | BK42: 14188.92686 | BL42: 0.3798448592 | BM42: 21840.293 | BN42: -0.5678198939 | BO42: 34 | CG42: 34 | CH42: 7651.366142 | CI42: -0.9476647531 | CO42: 0 | CP42: 0 | CQ42: 0 | CR42: 0 | CS42: 0 | CT42: 0 | CU42: 0 | CV42: 0 | CW42: 0 | CX42: 0
A43: discount rate | B43: 0.035 | H43: 1.09 | I43: 22 | J43: =MMULT(J42:M42,J$4:M$7) -> 0.2552828171 | K43: 0.0825137086 | L43: 0.6250543996 | M43: 0.03714907475 | N43: 0.9661835749 | O43: 15.17381381 | P43: 9.760498892 | Q43: 239.7531344 | R43: 0 | S43: 0.01683386692 | T43: 0.004338281137 | U43: -0.006894722443 | V43: 0 | AA43: 1.09 | AB43: 22 | AC43: =MMULT(AC42:AF42,AC$4:AF$7) -> 0.2786830896 | AD43: 0.09434624524 | AE43: 0.5798643515 | AF43: 0.04710631367 | AG43: 0.9661835749 | AH43: 114.0364746 | AI43: 44.1585597 | AJ43: 222.419514 | AK43: 0 | AL43: 0.01837692837 | AM43: 0.004960394376 | AN43: -0.006396249288 | AO43: 0 | BA43: 35 | BB43: 15237.77278 | BC43: 1.132444674 | BD43: 21441.26642 | BE43: 1.078337096 | BJ43: 35 | BK43: 15237.77278 | BL43: 1.132444674 | BM43: 21441.26642 | BN43: 1.078337096 | BO43: 35 | CG43: 35 | CH43: 6203.493641 | CI43: -0.05410757873 | CO43: 0 | CP43: 0 | CQ43: 0 | CR43: 0 | CS43: 0 | CT43: 0 | CU43: 0 | CV43: 0 | CW43: 0 | CX43: 0
A44: value per QALY | B44: 30000 | H44: 1.10 | I44: 23 | J44: =MMULT(J43:M43,J$4:M$7) -> 0.2460089667 | K44: 0.0794948106 | L44: 0.6350682178 | M44: 0.03942800487 | N44: 0.9661835749 | O44: 14.6225833 | P44: 9.403395193 | Q44: 243.594151 | R44: 0 | S44: 0.01622233041 | T44: 0.004179558078 | U44: -0.007005180825 | V44: 0 | AA44: 1.10 | AB44: 23 | AC44: =MMULT(AC43:AF43,AC$4:AF$7) -> 0.2684212981 | AD44: 0.09085828374 | AE44: 0.5909837682 | AF44: 0.0497366499 | AG44: 0.9661835749 | AH44: 109.8373733 | AI44: 42.52602673 | AJ44: 226.6846068 | AK44: 0 | AL44: 0.01770024502 | AM44: 0.004777009604 | AN44: -0.006518903079 | AO44: 0 | BA44: 36 | BB44: 12238.75643 | BC44: 0.9565551473 | BD44: 21133.04128 | BE44: 0.1166622267 | BJ44: 36 | BK44: 12238.75643 | BL44: 0.9565551473 | BM44: 21133.04128 | BN44: 0.1166622267 | BO44: 36 | CG44: 36 | CH44: 8894.284846 | CI44: -0.8398929206 | CO44: 0 | CP44: 0 | CQ44: 0 | CR44: 0 | CS44: 0 | CT44: 0 | CU44: 0 | CV44: 0 | CW44: 0 | CX44: 0
A45: default value per QALY | B45: 30000 | H45: 1.11 | I45: 24 | J45: =MMULT(J44:M44,J$4:M$7) -> 0.2370680709 | K45: 0.07659217946 | L45: 0.6446012997 | M45: 0.04173844988 | N45: 0.9661835749 | O45: 14.09114334 | P45: 9.060044633 | Q45: 247.2507707 | R45: 0 | S45: 0.0156327496 | T45: 0.004026947921 | U45: -0.007110336398 | V45: 0 | AA45: 1.11 | AB45: 24 | AC45: =MMULT(AC44:AF44,AC$4:AF$7) -> 0.2585344249 | AD45: 0.08750307721 | AE45: 0.6015789266 | AF45: 0.05238357133 | AG45: 0.9661835749 | AH45: 105.7916877 | AI45: 40.95562943 | AJ45: 230.748609 | AK45: 0 | AL45: 0.01704828454 | AM45: 0.004600604623 | AN45: -0.006635773989 | AO45: 0 | BA45: 37 | BB45: 12654.01851 | BC45: 1.304440368 | BD45: 21133.11026 | BE45: 0.5114868273 | BJ45: 37 | BK45: 12654.01851 | BL45: 1.304440368 | BM45: 21133.11026 | BN45: 0.5114868273 | BO45: 37 | CG45: 37 | CH45: 8479.091748 | CI45: -0.7929535404 | CO45: 0 | CP45: 0 | CQ45: 0 | CR45: 0 | CS45: 0 | CT45: 0 | CU45: 0 | CV45: 0 | CW45: 0 | CX45: 0
H46: 2.00 | I46: 25 | J46: =MMULT(J45:M45,J$4:M$7) -> 0.2284496308 | K46: 0.07379920695 | L46: 0.6536722984 | M46: 0.04407886386 | N46: 0.9335107004 | O46: 13.11968107 | P46: 8.434459449 | Q46: 242.2513512 | R46: 0 | S46: 0.01455500693 | T46: 0.003748892011 | U46: -0.006966565138 | V46: 0 | AA46: 2.00 | AB46: 25 | AC46: =MMULT(AC45:AF45,AC$4:AF$7) -> 0.2490098996 | AD46: 0.08427412206 | AE46: 0.6116699123 | AF46: 0.05504606603 | AG46: 0.9335107004 | AH46: 98.4485739 | AI46: 38.11045781 | AJ46: 226.6852413 | AK46: 0 | AL46: 0.01586494495 | AM46: 0.004281002412 | AN46: -0.006518921327 | AO46: 0 | BA46: 38 | BB46: 15693.89037 | BC46: 1.020447607 | BD46: 21810.52756 | BE46: 0.6575925964 | BJ46: 38 | BK46: 15693.89037 | BL46: 1.020447607 | BM46: 21810.52756 | BN46: 0.6575925964 | BO46: 38 | CG46: 38 | CH46: 6116.637186 | CI46: -0.3628550103 | CO46: 0 | CP46: 0 | CQ46: 0 | CR46: 0 | CS46: 0 | CT46: 0 | CU46: 0 | CV46: 0 | CW46: 0 | CX46: 0
H47: 2.01 | I47: 26 | J47: =MMULT(J46:M46,J$4:M$7) -> 0.2201429352 | K47: 0.07111040188 | L47: 0.6622989045 | M47: 0.04644775844 | N47: 0.9335107004 | O47: 12.64263413 | P47: 8.127157809 | Q47: 245.4483766 | R47: 0 | S47: 0.01402576987 | T47: 0.003612304638 | U47: -0.007058503887 | V47: 0 | AA47: 2.01 | AB47: 26 | AC47: =MMULT(AC46:AF46,AC$4:AF$7) -> 0.2398351386 | AD47: 0.08116577054 | AE47: 0.6212759285 | AF47: 0.05772316231 | AG47: 0.9335107004 | AH47: 94.82123966 | AI47: 36.70479856 | AJ47: 230.2452368 | AK47: 0 | AL47: 0.01528040161 | AM47: 0.004123102691 | AN47: -0.006621298218 | AO47: 0 | BA47: 39 | BB47: 15536.42374 | BC47: 1.046872406 | BD47: 21441.28947 | BE47: 0.7317503666 | BJ47: 39 | BK47: 15536.42374 | BL47: 1.046872406 | BM47: 21441.28947 | BN47: 0.7317503666 | BO47: 39 | CG47: 39 | CH47: 5904.865732 | CI47: -0.3151220394 | CO47: 0 | CP47: 0 | CQ47: 0 | CR47: 0 | CS47: 0 | CT47: 0 | CU47: 0 | CV47: 0 | CW47: 0 | CX47: 0
H48: 2.02 | I48: 27 | J48: =MMULT(J47:M47,J$4:M$7) -> 0.2121372876 | K48: 0.06852102637 | L48: 0.6704979852 | M48: 0.04884370077 | N48: 0.9335107004 | O48: 12.18287614 | P48: 7.831219903 | Q48: 248.4869609 | R48: 0 | S48: 0.01351571321 | T48: 0.003480768141 | U48: -0.00714588625 | V48: 0 | AA48: 2.02 | AB48: 27 | AC48: =MMULT(AC47:AF47,AC$4:AF$7) -> 0.2309977275 | AD48: 0.07817296354 | AE48: 0.6304153823 | AF48: 0.06041392666 | AG48: 0.9335107004 | AH48: 91.32728009 | AI48: 35.35139087 | AJ48: 233.6323239 | AK48: 0 | AL48: 0.01471735154 | AM48: 0.003971072463 | AN48: -0.006718702683 | AO48: 0 | BA48: 40 | BB48: 13743.5244 | BC48: 1.15237731 | BD48: 20470.97212 | BE48: 0.7841481314 | BJ48: 40 | BK48: 13743.5244 | BL48: 1.15237731 | BM48: 20470.97212 | BN48: 0.7841481314 | BO48: 40 | CG48: 40 | CH48: 6727.447723 | CI48: -0.3682291791 | CO48: 0 | CP48: 0 | CQ48: 0 | CR48: 0 | CS48: 0 | CT48: 0 | CU48: 0 | CV48: 0 | CW48: 0 | CX48: 0
H49: 2.03 | I49: 28 | J49: =MMULT(J48:M48,J$4:M$7) -> 0.2044221436 | K49: 0.06602686452 | L49: 0.6782856804 | M49: 0.05126531146 | N49: 0.9335107004 | O49: 11.73980154 | P49: 7.5461639 | Q49: 251.3730855 | R49: 0 | S49: 0.01302416514 | T49: 0.003354068359 | U49: -0.007228884238 | V49: 0 | AA49: 2.03 | AB49: 28 | AC49: =MMULT(AC48:AF48,AC$4:AF$7) -> 0.2224855275 | AD49: 0.0752910634 | AE49: 0.6391059471 | AF49: 0.06311746192 | AG49: 0.9335107004 | AH49: 87.96189602 | AI49: 34.0481375 | AJ49: 236.8530525 | AK49: 0 | AL49: 0.01417502136 | AM49: 0.003824676142 | AN49: -0.006811323077 | AO49: 0 | BA49: 41 | BB49: 15048.11554 | BC49: 0.8657305298 | BD49: 21028.54551 | BE49: 0.6361891429 | BJ49: 41 | BK49: 15048.11554 | BL49: 0.8657305298 | BM49: 21028.54551 | BN49: 0.6361891429 | BO49: 41 | CG49: 41 | CH49: 5980.429964 | CI49: -0.229541387 | CO49: =IF(AND((CO$8*$BL49-$BK49) <= ($BN49*CO$8-$BM49), ($BN49*CO$8-$BM49) >= 0),1,0) -> 0 | CP49: 0 | CQ49: 0 | CR49: 0 | CS49: 0 | CT49: 0 | CU49: 0 | CV49: 0 | CW49: 0 | CX49: 0
H50: 2.04 | I50: 29 | J50: =MMULT(J49:M49,J$4:M$7) -> 0.1969871928 | K50: 0.06362407456 | L50: 0.6856774699 | M50: 0.05371126267 | N50: 0.9335107004 | O50: 11.31281822 | P50: 7.271550726 | Q50: 254.1124872 | R50: 0 | S50: 0.01255046877 | T50: 0.003232010136 | U50: -0.00730766283 | V50: 0 | AA50: 2.04 | AB50: 29 | AC50: =MMULT(AC49:AF49,AC$4:AF$7) -> 0.2142867351 | AD50: 0.07251574849 | AE50: 0.6473646107 | AF50: 0.06583290576 | AG50: 0.9335107004 | AH50: 84.72042077 | AI50: 32.79308412 | AJ50: 239.9137183 | AK50: 0 | AL50: 0.01365265903 | AM50: 0.003683694195 | AN50: -0.006899340449 | AO50: 0 | BA50: 42 | BB50: 15967.87887 | BC50: 1.496322171 | BD50: 20789.86168 | BE50: 1.324972151 | BJ50: 42 | BK50: 15967.87887 | BL50: 1.496322171 | BM50: 20789.86168 | BN50: 1.324972151 | BO50: 42 | CG50: 42 | CH50: 4821.982817 | CI50: -0.1713500205 | CO50: 0 | CP50: 0 | CQ50: 0 | CR50: 0 | CS50: 0 | CT50: 0 | CU50: 0 | CV50: 0 | CW50: 0 | CX50: 0
H51: 2.05 | I51: 30 | J51: =MMULT(J50:M50,J$4:M$7) -> 0.1898224053 | K51: 0.06130909393 | L51: 0.6926882245 | M51: 0.05618027624 | N51: 0.9335107004 | O51: 10.90135015 | P51: 7.006973218 | Q51: 256.7106771 | R51: 0 | S51: 0.01209398508 | T51: 0.003114412498 | U51: -0.007382380511 | V51: 0 | AA51: 2.05 | AB51: 30 | AC51: =MMULT(AC50:AF50,AC$4:AF$7) -> 0.206389912 | AD51: 0.06984294609 | AE51: 0.6552077127 | AF51: 0.0685594292 | AG51: 0.9335107004 | AH51: 81.59833218 | AI51: 31.58438896 | AJ51: 242.8203766 | AK51: 0 | AL51: 0.01314953581 | AM51: 0.003547919733 | AN51: -0.006982928939 | AO51: 0 | BA51: 43 | BB51: 12935.77676 | BC51: 2.094172605 | BD51: 21703.0225 | BE51: 1.319993633 | BJ51: 43 | BK51: 12935.77676 | BL51: 2.094172605 | BM51: 21703.0225 | BN51: 1.319993633 | BO51: 43 | CG51: 43 | CH51: 8767.245749 | CI51: -0.7741789727 | CO51: 0 | CP51: 0 | CQ51: 0 | CR51: 0 | CS51: 0 | CT51: 0 | CU51: 0 | CV51: 0 | CW51: 0 | CX51: 0
H52: 2.06 | I52: 31 | J52: =MMULT(J51:M51,J$4:M$7) -> 0.1829180564 | K52: 0.05907857769 | L52: 0.6993322441 | M52: 0.05867112184 | N52: 0.9335107004 | O52: 10.50483887 | P52: 6.752049086 | Q52: 259.1729548 | R52: 0 | S52: 0.01165409447 | T52: 0.003001105528 | U52: -0.007453189685 | V52: 0 | AA52: 2.06 | AB52: 31 | AC52: =MMULT(AC51:AF51,AC$4:AF$7) -> 0.1987839992 | AD52: 0.06726878891 | AE52: 0.6626509766 | AF52: 0.07129623534 | AG52: 0.9335107004 | AH52: 78.59125786 | AI52: 30.42030316 | AJ52: 245.5788548 | AK52: 0 | AL52: 0.01266494709 | AM52: 0.003417156305 | AN52: -0.007062256124 | AO52: 0 | BA52: 44 | BB52: 15080.08994 | BC52: 1.182472952 | BD52: 20271.06736 | BE52: 1.318007342 | BJ52: 44 | BK52: 15080.08994 | BL52: 1.182472952 | BM52: 20271.06736 | BN52: 1.318007342 | BO52: 44 | CG52: 44 | CH52: 5190.97742 | CI52: 0.1355343896 | CO52: 0 | CP52: 0 | CQ52: 0 | CR52: 0 | CS52: 0 | CT52: 0 | CU52: 0 | CV52: 1 | CW52: 1 | CX52: 1
H53: 2.07 | I53: 32 | J53: =MMULT(J52:M52,J$4:M$7) -> 0.1762647373 | K53: 0.05692935819 | L53: 0.7056232892 | M53: 0.06118261528 | N53: 0.9335107004 | O53: 10.12274404 | P53: 6.506416301 | Q53: 261.50442 | R53: 0 | S53: 0.0112301975 | T53: 0.002891928314 | U53: -0.007520237005 | V53: 0 | AA53: 2.07 | AB53: 32 | AC53: =MMULT(AC52:AF52,AC$4:AF$7) -> 0.1914583182 | AD53: 0.06478958636 | AE53: 0.6697095374 | AF53: 0.07404255806 | AG53: 0.9335107004 | AH53: 75.69497606 | AI53: 29.29915776 | AJ53: 248.1947617 | AK53: 0 | AL53: 0.01219821253 | AM53: 0.003291216434 | AN53: -0.007137483303 | AO53: 0 | BA53: 45 | BB53: 17973.86756 | BC53: -0.04980831968 | BD53: 21993.78134 | BE53: 0.5358592255 | BJ53: 45 | BK53: 17973.86756 | BL53: -0.04980831968 | BM53: 21993.78134 | BN53: 0.5358592255 | BO53: 45 | CG53: 45 | CH53: 4019.913781 | CI53: 0.5856675452 | CO53: 0 | CP53: 0 | CQ53: 0 | CR53: 0 | CS53: 0 | CT53: 0 | CU53: 0 | CV53: 0 | CW53: 1 | CX53: 1
H54: 2.08 | I54: 33 | J54: =MMULT(J53:M53,J$4:M$7) -> 0.1698533579 | K54: 0.05485841813 | L54: 0.7115746072 | M54: 0.0637136168 | N54: 0.9335107004 | O54: =c_sil_A*J54*N54 -> 9.754543601 | P54: =c_act_A*K54*N54 -> 6.269730018 | Q54: =c_compl_A*L54*N54 -> 263.709982 | R54: =c_dead_A*M54*N54 -> 0 | S54: =u_sil*J54*N54 -> 0.01082171502 | T54: =u_act*K54*N54 -> 0.002786727581 | U54: =u_compl*L54*N54 -> -0.007583663655 | V54: =u_dead*M54*N54 -> 0 | AA54: 2.08 | AB54: 33 | AC54: =MMULT(AC53:AF53,AC$4:AF$7) -> 0.1844025682 | AD54: 0.06240180499 | AE54: 0.6763979659 | AF54: 0.07679766092 | AG54: 0.9335107004 | AH54: =c_sil_B*AC54*AG54 -> 72.90541417 | AI54: =c_act_B*AD54*AG54 -> 28.21935487 | AJ54: =c_compl_B*AE54*AG54 -> 250.6734974 | AK54: =c_dead_B*AF54*AG54 -> 0 | AL54: =u_sil*AC54*AG54 -> 0.01174867584 | AM54: =u_act*AD54*AG54 -> 0.003169920625 | AN54: =u_compl*AE54*AG54 -> -0.007208765769 | AO54: =u_dead*AF54*AG54 -> 0 | BA54: 46 | BB54: 16835.19355 | BC54: 0.5855682889 | BD54: 20874.82299 | BE54: 0.9847349179 | BJ54: 46 | BK54: 16835.19355 | BL54: 0.5855682889 | BM54: 20874.82299 | BN54: 0.9847349179 | BO54: 46 | CG54: 46 | CH54: 4039.629442 | CI54: 0.399166629 | CO54: 0 | CP54: 0 | CQ54: 0 | CR54: 0 | CS54: 1 | CT54: 1 | CU54: 1 | CV54: 1 | CW54: 1 | CX54: 1
H55: 2.09 | I55: 34 | J55: =MMULT(J54:M54,J$4:M$7) -> 0.1636751435 | K55: 0.05286287214 | L55: 0.7171989549 | M55: 0.06626302946 | N55: 0.9335107004 | O55: 9.39973365 | P55: 6.041660471 | Q55: 265.7943687 | R55: 0 | S55: 0.01042808798 | T55: 0.002685356757 | U55: -0.007643605594 | V55: 0 | AA55: 2.09 | AB55: 34 | AC55: =MMULT(AC54:AF54,AC$4:AF$7) -> 0.1776068176 | AD55: 0.0601020546 | AE55: 0.6827302918 | AF55: 0.07956083596 | AG55: 0.9335107004 | AH55: 70.21864568 | AI55: 27.17936135 | AJ55: 253.0202612 | AK55: 0 | AL55: 0.01131570427 | AM55: 0.003053096661 | AN55: -0.007276253042 | AO55: 0 | BA55: 47 | BB55: 17508.83683 | BC55: 1.201791817 | BD55: 21365.677 | BE55: 1.373157462 | BJ55: 47 | BK55: 17508.83683 | BL55: 1.201791817 | BM55: 21365.677 | BN55: 1.373157462 | BO55: 47 | CG55: 47 | CH55: 3856.840169 | CI55: 0.171365645 | CO55: 0 | CP55: 0 | CQ55: 0 | CR55: 0 | CS55: 1 | CT55: 1 | CU55: 1 | CV55: 1 | CW55: 1 | CX55: 1
H56: 2.10 | I56: 35 | J56: =MMULT(J55:M55,J$4:M$7) -> 0.1577216292 | K56: 0.0509399538 | L56: 0.7225086195 | M56: 0.06882979755 | N56: 0.9335107004 | O56: 9.057828046 | P56: 5.821891487 | Q56: 267.7621336 | R56: 0 | S56: 0.01004877705 | T56: 0.002587675312 | U56: -0.007700193771 | V56: 0 | AA56: 2.10 | AB56: 35 | AC56: =MMULT(AC55:AF55,AC$4:AF$7) -> 0.1710614948 | AD56: 0.05788707797 | AE56: 0.6887200245 | AF56: 0.0823314027 | AG56: 0.9335107004 | AH56: 67.63088632 | AI56: 26.17770425 | AJ56: 255.2400598 | AK56: 0 | AL56: 0.01089868797 | AM56: 0.002940579081 | AN56: -0.0073400891 | AO56: 0 | BA56: 48 | BB56: 13957.35574 | BC56: 1.900421393 | BD56: 21282.79401 | BE56: 1.498858739 | BJ56: 48 | BK56: 13957.35574 | BL56: 1.900421393 | BM56: 21282.79401 | BN56: 1.498858739 | BO56: 48 | CG56: 48 | CH56: 7325.438268 | CI56: -0.4015626541 | CO56: 0 | CP56: 0 | CQ56: 0 | CR56: 0 | CS56: 0 | CT56: 0 | CU56: 0 | CV56: 0 | CW56: 0 | CX56: 0
H57: 2.11 | I57: 36 | J57: =MMULT(J56:M56,J$4:M$7) -> 0.1519846519 | K57: 0.04908700618 | L57: 0.7275154367 | M57: 0.07141290514 | N57: 0.9335107004 | O57: 8.728357994 | P57: 5.610119407 | Q57: 269.6176631 | R57: 0 | S57: 0.009683262149 | T57: 0.002493548277 | U57: -0.007753554329 | V57: 0 | AA57: 2.11 | AB57: 36 | AC57: =MMULT(AC56:AF56,AC$4:AF$7) -> 0.1647573769 | AD57: 0.05575374291 | AE57: 0.6943801731 | AF57: 0.08510870708 | AG57: 0.9335107004 | AH57: 65.13848976 | AI57: 25.2129671 | AJ57: 257.3377143 | AK57: 0 | AL57: 0.01049703935 | AM57: 0.002832208773 | AN57: -0.007400412589 | AO57: 0 | BA57: 49 | BB57: 15586.2605 | BC57: 0.9511771576 | BD57: 22381.9578 | BE57: 0.8702681358 | BJ57: 49 | BK57: 15586.2605 | BL57: 0.9511771576 | BM57: 22381.9578 | BN57: 0.8702681358 | BO57: 49 | CG57: 49 | CH57: 6795.697295 | CI57: -0.0809090218 | CO57: 0 | CP57: 0 | CQ57: 0 | CR57: 0 | CS57: 0 | CT57: 0 | CU57: 0 | CV57: 0 | CW57: 0 | CX57: 0
H58: 3.00 | I58: 37 | J58: =MMULT(J57:M57,J$4:M$7) -> 0.1464563419 | K58: 0.04730147457 | L58: 0.732230809 | M58: 0.07401137457 | N58: 0.9019427057 | O58: 8.126445926 | P58: 5.223238893 | Q58: 262.1885826 | R58: 0 | S58: 0.009015499397 | T58: 0.002321590219 | U58: -0.007539911873 | V58: 0 | AA58: 3.00 | AB58: 37 | AC58: =MMULT(AC57:AF57,AC$4:AF$7) -> 0.1586855787 | AD58: 0.05369903571 | AE58: 0.6997232651 | AF58: 0.08789212049 | AG58: 0.9019427057 | AH58: 60.61637016 | AI58: 23.4625962 | AJ58: 250.5486642 | AK58: 0 | AL58: 0.009768301737 | AM58: 0.002635587098 | AN58: -0.007205175867 | AO58: 0 | BA58: 50 | BB58: 17434.4901 | BC58: 0.04332776904 | BD58: 21265.03849 | BE58: 0.6645003103 | BJ58: 50 | BK58: 17434.4901 | BL58: 0.04332776904 | BM58: 21265.03849 | BN58: 0.6645003103 | BO58: 50 | CG58: 50 | CH58: 3830.54839 | CI58: 0.6211725412 | CO58: 0 | CP58: 0 | CQ58: 0 | CR58: 0 | CS58: 0 | CT58: 0 | CU58: 1 | CV58: 1 | CW58: 1 | CX58: 1
H59: 3.01 | I59: 38 | J59: =MMULT(J58:M58,J$4:M$7) -> 0.141129113 | K59: 0.04558090071 | L59: 0.7366657212 | M59: 0.0766242651 | N59: 0.9019427057 | O59: 7.830853143 | P59: 5.033245487 | Q59: 263.7765837 | R59: 0 | S59: 0.008687568026 | T59: 0.002237143223 | U59: -0.007585578959 | V59: 0 | AA59: 3.01 | AB59: 38 | AC59: =MMULT(AC58:AF58,AC$4:AF$7) -> 0.1528375407 | AD59: 0.05172005565 | AE59: 0.7047613648 | AF59: 0.09068103882 | AG59: 0.9019427057 | AH59: 58.38247572 | AI59: 22.59792499 | AJ59: 252.3526476 | AK59: 0 | AL59: 0.009408310618 | AM59: 0.00253845734 | AN59: -0.007257054083 | AO59: 0 | BA59: 51 | BB59: 15203.32701 | BC59: 1.142597703 | BD59: 21201.63124 | BE59: 1.213657231 | BJ59: 51 | BK59: 15203.32701 | BL59: 1.142597703 | BM59: 21201.63124 | BN59: 1.213657231 | BO59: 51 | CG59: 51 | CH59: 5998.304232 | CI59: 0.07105952783 | CO59: 0 | CP59: 0 | CQ59: 0 | CR59: 0 | CS59: 0 | CT59: 0 | CU59: 0 | CV59: 0 | CW59: 0 | CX59: 0
H60: 3.02 | I60: 39 | J60: =MMULT(J59:M59,J$4:M$7) -> 0.1359956537 | K60: 0.043922918 | L60: 0.7408307568 | M60: 0.07925067153 | N60: 0.9019427057 | O60: 7.546012083 | P60: 4.850163672 | Q60: 265.2679506 | R60: 0 | S60: 0.008371564643 | T60: 0.002155768245 | U60: -0.007628467077 | V60: 0 | AA60: 3.02 | AB60: 39 | AC60: =MMULT(AC59:AF59,AC$4:AF$7) -> 0.1472050184 | AD60: 0.04981401004 | AE60: 0.7095060901 | AF60: 0.09347488153 | AG60: 0.9019427057 | AH60: 56.23090615 | AI60: 21.76512086 | AJ60: 254.0515829 | AK60: 0 | AL60: 0.009061586116 | AM60: 0.002444907258 | AN60: -0.007305911369 | AO60: 0 | BA60: 52 | BB60: 15193.39758 | BC60: 1.419438599 | BD60: 21230.42569 | BE60: 1.322817107 | BJ60: 52 | BK60: 15193.39758 | BL60: 1.419438599 | BM60: 21230.42569 | BN60: 1.322817107 | BO60: 52 | CG60: 52 | CH60: 6037.028106 | CI60: -0.09662149208 | CO60: 0 | CP60: 0 | CQ60: 0 | CR60: 0 | CS60: 0 | CT60: 0 | CU60: 0 | CV60: 0 | CW60: 0 | CX60: 0
H61: 3.03 | I61: 40 | J61: =MMULT(J60:M60,J$4:M$7) -> 0.1310489173 | K61: 0.04232524731 | L61: 0.7447361125 | M61: 0.08188972293 | N61: 0.9019427057 | O61: 7.271531751 | P61: 4.673741779 | Q61: 266.6663343 | R61: 0 | S61: 0.008067055477 | T61: 0.002077353425 | U61: -0.007668681224 | V61: 0 | AA61: 3.03 | AB61: 40 | AC61: =MMULT(AC60:AF60,AC$4:AF$7) -> 0.14178007 | AD61: 0.04797820988 | AE61: 0.7139686293 | AF61: 0.09627309083 | AG61: 0.9019427057 | AH61: 54.15862788 | AI61: 20.96300892 | AJ61: 255.6494764 | AK61: 0 | AL61: 0.008727639372 | AM61: 0.002354804872 | AN61: -0.007351862935 | AO61: 0 | BA61: 53 | BB61: 16804.7977 | BC61: 1.470702632 | BD61: 21042.16618 | BE61: 1.55610746 | BJ61: 53 | BK61: 16804.7977 | BL61: 1.470702632 | BM61: 21042.16618 | BN61: 1.55610746 | BO61: 53 | CG61: 53 | CH61: 4237.368484 | CI61: 0.08540482802 | CO61: 0 | CP61: 0 | CQ61: 0 | CR61: 0 | CS61: 0 | CT61: 0 | CU61: 0 | CV61: 0 | CW61: 0 | CX61: 1
H62: 3.04 | I62: 41 | J62: =MMULT(J61:M61,J$4:M$7) -> 0.1262821131 | K62: 0.04078569332 | L62: 0.7483916123 | M62: 0.08454058136 | N62: 0.9019427057 | O62: 7.007035338 | P62: 4.503737391 | Q62: 267.9752526 | R62: 0 | S62: 0.007773622497 | T62: 0.002001791013 | U62: -0.007706322561 | V62: 0 | AA62: 3.04 | AB62: 41 | AC62: =MMULT(AC61:AF61,AC$4:AF$7) -> 0.1365550465 | AD62: 0.04621006567 | AE62: 0.718159757 | AF62: 0.09907513078 | AG62: 0.9019427057 | AH62: 52.162719 | AI62: 20.19045774 | AJ62: 257.150186 | AK62: 0 | AL62: 0.008405999521 | AM62: 0.00226802309 | AN62: -0.007395019729 | AO62: 0 | BA62: 54 | BB62: 16277.48993 | BC62: 1.35561836 | BD62: 20974.43754 | BE62: 1.362630964 | BJ62: 54 | BK62: 16277.48993 | BL62: 1.35561836 | BM62: 20974.43754 | BN62: 1.362630964 | BO62: 54 | CG62: 54 | CH62: 4696.947608 | CI62: 0.007012604664 | CO62: 0 | CP62: 0 | CQ62: 0 | CR62: 0 | CS62: 0 | CT62: 0 | CU62: 0 | CV62: 0 | CW62: 0 | CX62: 0
H63: 3.05 | I63: 42 | J63: =MMULT(J62:M62,J$4:M$7) -> 0.1216886967 | K63: 0.03930214112 | L63: 0.7518067215 | M63: 0.08720244068 | N63: 0.9019427057 | O63: 6.752159725 | P63: 4.339916967 | Q63: 269.1980947 | R63: 0 | S63: 0.007490862855 | T63: 0.001928977209 | U63: -0.007741488553 | V63: 0 | AA63: 3.05 | AB63: 42 | AC63: =MMULT(AC62:AF62,AC$4:AF$7) -> 0.1315225805 | AD63: 0.04450708366 | AE63: 0.7220898494 | AF63: 0.1018804865 | AG63: 0.9019427057 | AH63: 50.24036518 | AI63: 19.44637772 | AJ63: 258.5574272 | AK63: 0 | AL63: 0.008096213039 | AM63: 0.002184439514 | AN63: -0.007435488594 | AO63: 0 | BA63: 55 | BB63: 13232.29134 | BC63: 1.531001863 | BD63: 21768.10766 | BE63: 0.8740781033 | BJ63: 55 | BK63: 13232.29134 | BL63: 1.531001863 | BM63: 21768.10766 | BN63: 0.8740781033 | BO63: 55 | CG63: 55 | CH63: 8535.816321 | CI63: -0.6569237597 | CO63: 0 | CP63: 0 | CQ63: 0 | CR63: 0 | CS63: 0 | CT63: 0 | CU63: 0 | CV63: 0 | CW63: 0 | CX63: 0
H64: 3.06 | I64: 43 | J64: =MMULT(J63:M63,J$4:M$7) -> 0.1172623617 | K64: 0.03787255307 | L64: 0.7549905598 | M64: 0.08987452541 | N64: 0.9019427057 | O64: 6.506554985 | P64: 4.182055506 | Q64: 270.3381261 | R64: 0 | S64: 0.007218388343 | T64: 0.001858812005 | U64: -0.007774273106 | V64: 0 | AA64: 3.06 | AB64: 43 | AC64: =MMULT(AC63:AF63,AC$4:AF$7) -> 0.1266755756 | AD64: 0.04286686213 | AE64: 0.7257688988 | AF64: 0.1046886634 | AG64: 0.9019427057 | AH64: 48.3888558 | AI64: 18.7297195 | AJ64: 259.8747779 | AK64: 0 | AL64: 0.007797843105 | AM64: 0.002103936267 | AN64: -0.007473372426 | AO64: 0 | BA64: 56 | BB64: 18629.26192 | BC64: 0.6850662096 | BD64: 21650.12423 | BE64: 1.02483358 | BJ64: 56 | BK64: 18629.26192 | BL64: 0.6850662096 | BM64: 21650.12423 | BN64: 1.02483358 | BO64: 56 | CG64: 56 | CH64: 3020.862306 | CI64: 0.3397673704 | CO64: 0 | CP64: 0 | CQ64: 0 | CR64: 0 | CS64: 1 | CT64: 1 | CU64: 1 | CV64: 1 | CW64: 1 | CX64: 1
H65: 3.07 | I65: 44 | J65: =MMULT(J64:M64,J$4:M$7) -> 0.1129970309 | K65: 0.03649496588 | L65: 0.7579519137 | M65: 0.09255608956 | N65: 0.9019427057 | O65: 6.26988391 | P65: 4.029936211 | Q65: 271.3984927 | R65: 0 | S65: 0.006955824862 | T65: 0.00179119904 | U65: -0.007804766697 | V65: 0 | AA65: 3.07 | AB65: 44 | AC65: =MMULT(AC64:AF64,AC$4:AF$7) -> 0.1220071974 | AD65: 0.041287088 | AE65: 0.7292065281 | AF65: 0.1074991864 | AG65: 0.9019427057 | AH65: 46.60558006 | AI65: 18.03947242 | AJ65: 261.1056837 | AK65: 0 | AL65: 0.007510468994 | AM65: 0.002026399823 | AN65: -0.007508770311 | AO65: 0 | BA65: 57 | BB65: 15250.35576 | BC65: 1.201379098 | BD65: 19823.5308 | BE65: 1.268165823 | BJ65: 57 | BK65: 15250.35576 | BL65: 1.201379098 | BM65: 19823.5308 | BN65: 1.268165823 | BO65: 57 | CG65: 57 | CH65: 4573.175041 | CI65: 0.06678672495 | CO65: 0 | CP65: 0 | CQ65: 0 | CR65: 0 | CS65: 0 | CT65: 0 | CU65: 0 | CV65: 0 | CW65: 0 | CX65: 0
H66: 3.08 | I66: 45 | J66: =MMULT(J65:M65,J$4:M$7) -> 0.1088868481 | K66: 0.03516748782 | L66: 0.7606992485 | M66: 0.09524641561 | N66: =N54/(1+disc) -> 0.9019427057 | O66: 6.041821554 | P66: 3.883350188 | Q66: 272.382226 | R66: 0 | S66: 0.006702811915 | T66: 0.001726045467 | U66: -0.007833056496 | V66: 0 | AA66: 3.08 | AB66: 45 | AC66: =MMULT(AC65:AF65,AC$4:AF$7) -> 0.1175108629 | AD66: 0.03976553351 | AE66: 0.7324120042 | AF66: 0.1103115993 | AG66: =AG54/(1+disc) -> 0.9019427057 | AH66: 44.88802338 | AI66: 17.37466312 | AJ66: 262.2534628 | AK66: 0 | AL66: 0.007233685482 | AM66: 0.00195172084 | AN66: -0.007541777672 | AO66: 0 | BA66: 58 | BB66: 14616.8161 | BC66: 0.1279747199 | BD66: 21050.895 | BE66: 0.03169802705 | BJ66: 58 | BK66: 14616.8161 | BL66: 0.1279747199 | BM66: 21050.895 | BN66: 0.03169802705 | BO66: 58 | CG66: 58 | CH66: 6434.078903 | CI66: -0.09627669286 | CO66: 0 | CP66: 0 | CQ66: 0 | CR66: 0 | CS66: 0 | CT66: 0 | CU66: 0 | CV66: 0 | CW66: 0 | CX66: 0
H67: 3.09 | I67: 46 | J67: =MMULT(J66:M66,J$4:M$7) -> 0.10492617 | K67: 0.03388829605 | L67: 0.7632407206 | M67: 0.09794481341 | N67: 0.9019427057 | O67: 5.822054788 | P67: 3.742096152 | Q67: 273.2922464 | R67: 0 | S67: 0.006459002116 | T67: 0.00166326182 | U67: -0.00785922649 | V67: 0 | AA67: 3.09 | AB67: 46 | AC67: =MMULT(AC66:AF66,AC$4:AF$7) -> 0.1131802319 | AD67: 0.03830005301 | AE67: 0.7353942511 | AF67: 0.1131254639 | AG67: 0.9019427057 | AH67: 43.23376384 | AI67: 16.73435409 | AJ67: 263.3213107 | AK67: 0 | AL67: 0.006967102274 | AM67: 0.001879794008 | AN67: -0.007572486403 | AO67: 0 | BA67: 59 | BB67: 15543.95638 | BC67: 0.344081495 | BD67: 21083.36499 | BE67: 0.4942773619 | BJ67: 59 | BK67: 15543.95638 | BL67: 0.344081495 | BM67: 21083.36499 | BN67: 0.4942773619 | BO67: 59 | CG67: 59 | CH67: 5539.408609 | CI67: 0.1501958669 | CO67: 0 | CP67: 0 | CQ67: 0 | CR67: 0 | CS67: 0 | CT67: 0 | CU67: 0 | CV67: 0 | CW67: 1 | CX67: 1
H68: 3.10 | I68: 47 | J68: =MMULT(J67:M67,J$4:M$7) -> 0.1011095585 | K68: 0.03265563411 | L68: 0.7655841882 | M68: 0.1006506192 | N68: 0.9019427057 | O68: 5.610281869 | P68: 3.605980145 | Q68: 274.1313677 | R68: 0 | S68: 0.006224060711 | T68: 0.001602761889 | U68: -0.007883357596 | V68: 0 | AA68: 3.10 | AB68: 47 | AC68: =MMULT(AC67:AF67,AC$4:AF$7) -> 0.1090091977 | AD68: 0.03688857997 | AE68: 0.7381618628 | AF68: 0.1159403595 | AG68: 0.9019427057 | AH68: 41.64046875 | AI68: 16.11764242 | AJ68: 264.3123044 | AK68: 0 | AL68: 0.006710343462 | AM68: 0.001810517901 | AN68: -0.007600984997 | AO68: 0 | BA68: 60 | BB68: 15395.71716 | BC68: 0.9722034812 | BD68: 20938.10718 | BE68: 0.9812916366 | BJ68: 60 | BK68: 15395.71716 | BL68: 0.9722034812 | BM68: 20938.10718 | BN68: 0.9812916366 | BO68: 60 | CG68: 60 | CH68: 5542.390018 | CI68: 0.009088155432 | CO68: 0 | CP68: 0 | CQ68: 0 | CR68: 0 | CS68: 0 | CT68: 0 | CU68: 0 | CV68: 0 | CW68: 0 | CX68: 0
H69: 3.11 | I69: 48 | J69: =MMULT(J68:M68,J$4:M$7) -> 0.0974317733 | K69: 0.03146780943 | L69: 0.7677372225 | M69: 0.1033631948 | N69: 0.9019427057 | O69: 5.406212029 | P69: 3.474815269 | Q69: 274.9023008 | R69: 0 | S69: 0.005997665121 | T69: 0.001544462604 | U69: -0.007905527776 | V69: 0 | AA69: 3.11 | AB69: 48 | AC69: =MMULT(AC68:AF68,AC$4:AF$7) -> 0.1049918787 | AD69: 0.03552912403 | AE69: 0.7407231151 | AF69: 0.1187558822 | AG69: 0.9019427057 | AH69: 40.1058914 | AI69: 15.52365847 | AJ69: 265.2294075 | AK69: 0 | AL69: 0.006463046988 | AM69: 0.001743794831 | AN69: -0.00762735867 | AO69: 0 | BA69: 61 | BB69: 14560.55294 | BC69: 0.5039352974 | BD69: 21630.70413 | BE69: 0.3635766063 | BJ69: 61 | BK69: 14560.55294 | BL69: 0.5039352974 | BM69: 21630.70413 | BN69: 0.3635766063 | BO69: 61 | CG69: 61 | CH69: 7070.1512 | CI69: -0.1403586912 | CO69: =IF(AND((CO$8*$BL69-$BK69) <= ($BN69*CO$8-$BM69), ($BN69*CO$8-$BM69) >= 0),1,0) -> 0 | CP69: 0 | CQ69: 0 | CR69: 0 | CS69: 0 | CT69: 0 | CU69: 0 | CV69: 0 | CW69: 0 | CX69: 0
H70: 4.00 | I70: 49 | J70: =MMULT(J69:M69,J$4:M$7) -> 0.09388776481 | K70: 0.03032319106 | L70: 0.7697071178 | M70: 0.1060819263 | N70: 0.8714422277 | O70: 5.033396208 | P70: 3.235189783 | Q70: 266.287592 | R70: 0 | S70: 0.005584062319 | T70: 0.001437955474 | U70: -0.007657789508 | V70: 0 | AA70: 4.00 | AB70: 49 | AC70: =MMULT(AC69:AF69,AC$4:AF$7) -> 0.1011226101 | AD70: 0.03421976818 | AE70: 0.7430859776 | AF70: 0.1215716441 | AG70: 0.8714422277 | AH70: 37.32161146 | AI70: 14.44595616 | AJ70: 257.0777521 | AK70: 0 | AL70: 0.006014361485 | AM70: 0.001622734984 | AN70: -0.007392936705 | AO70: 0 | BA70: 62 | BB70: 15828.53219 | BC70: 0.6586805308 | BD70: 21443.65314 | BE70: 0.9529859844 | BJ70: 62 | BK70: 15828.53219 | BL70: 0.6586805308 | BM70: 21443.65314 | BN70: 0.9529859844 | BO70: 62 | CG70: 62 | CH70: 5615.120943 | CI70: 0.2943054537 | CO70: 0 | CP70: 0 | CQ70: 0 | CR70: 0 | CS70: 1 | CT70: 1 | CU70: 1 | CV70: 1 | CW70: 1 | CX70: 1
H71: 4.01 | I71: 50 | J71: =MMULT(J70:M70,J$4:M$7) -> 0.09047266697 | K71: 0.02922020738 | L71: 0.771500902 | M71: 0.1088062236 | N71: 0.8714422277 | O71: 4.850310153 | P71: 3.117512144 | Q71: 266.908169 | R71: 0 | S71: 0.005380946192 | T71: 0.001385650905 | U71: -0.007675635806 | V71: 0 | AA71: 4.01 | AB71: 50 | AC71: =MMULT(AC70:AF70,AC$4:AF$7) -> 0.0973959357 | AD71: 0.03295866607 | AE71: 0.745258125 | AF71: 0.1243872732 | AG71: 0.8714422277 | AH71: 35.94619707 | AI71: 13.91357892 | AJ71: 257.8292275 | AK71: 0 | AL71: 0.005792714053 | AM71: 0.001562932285 | AN71: -0.007414547325 | AO71: 0 | BA71: 63 | BB71: 15181.21938 | BC71: 0.7254903008 | BD71: 20683.62548 | BE71: 0.7476665447 | BJ71: 63 | BK71: 15181.21938 | BL71: 0.7254903008 | BM71: 20683.62548 | BN71: 0.7476665447 | BO71: 63 | CG71: 63 | CH71: 5502.406099 | CI71: 0.02217624396 | CO71: 0 | CP71: 0 | CQ71: 0 | CR71: 0 | CS71: 0 | CT71: 0 | CU71: 0 | CV71: 0 | CW71: 0 | CX71: 0
H72: 4.02 | I72: 51 | J72: =MMULT(J71:M71,J$4:M$7) -> 0.08718179076 | K72: 0.02815734394 | L72: 0.7731253461 | M72: 0.1115355192 | N72: 0.8714422277 | O72: 4.673883716 | P72: 3.004114945 | Q72: 267.470161 | R72: 0 | S72: 0.005185218262 | T72: 0.001335248878 | U72: -0.007691797343 | V72: 0 | AA72: 4.02 | AB72: 51 | AC72: =MMULT(AC71:AF71,AC$4:AF$7) -> 0.09380660054 | AD72: 0.0317440394 | AE72: 0.7472469479 | AF72: 0.1272024121 | AG72: 0.8714422277 | AH72: 34.62147086 | AI72: 13.40082139 | AJ72: 258.5172799 | AK72: 0 | AL72: 0.005579234999 | AM72: 0.001505333497 | AN72: -0.007434334055 | AO72: 0 | BA72: 64 | BB72: 16484.01574 | BC72: 0.5625319856 | BD72: 21715.96941 | BE72: 0.3566743196 | BJ72: 64 | BK72: 16484.01574 | BL72: 0.5625319856 | BM72: 21715.96941 | BN72: 0.3566743196 | BO72: 64 | CG72: 64 | CH72: 5231.953665 | CI72: -0.205857666 | CO72: 0 | CP72: 0 | CQ72: 0 | CR72: 0 | CS72: 0 | CT72: 0 | CU72: 0 | CV72: 0 | CW72: 0 | CX72: 0
H73: 4.03 | I73: 52 | J73: =MMULT(J72:M72,J$4:M$7) -> 0.08401061773 | K73: 0.02713314138 | L73: 0.7745869732 | M73: 0.1142692677 | N73: 0.8714422277 | O73: 4.503874659 | P73: 2.894842486 | Q73: 267.975825 | R73: 0 | S73: 0.004996609791 | T73: 0.001286680188 | U73: -0.007706339022 | V73: 0 | AA73: 4.03 | AB73: 52 | AC73: =MMULT(AC72:AF72,AC$4:AF$7) -> 0.09034954325 | AD73: 0.03057417541 | AE73: 0.7490595632 | AF73: 0.1300167181 | AG73: 0.8714422277 | AH73: 33.34556482 | AI73: 12.90696054 | AJ73: 259.1443716 | AK73: 0 | AL73: 0.005373623294 | AM73: 0.001449857398 | AN73: -0.007452367701 | AO73: 0 | BA73: 65 | BB73: 16458.29002 | BC73: 0.513042169 | BD73: 21732.7527 | BE73: 0.3537251789 | BJ73: 65 | BK73: 16458.29002 | BL73: 0.513042169 | BM73: 21732.7527 | BN73: 0.3537251789 | BO73: 65 | CG73: 65 | CH73: 5274.46268 | CI73: -0.1593169901 | CO73: 0 | CP73: 0 | CQ73: 0 | CR73: 0 | CS73: 0 | CT73: 0 | CU73: 0 | CV73: 0 | CW73: 0 | CX73: 0
H74: 4.04 | I74: 53 | J74: =MMULT(J73:M73,J$4:M$7) -> 0.08095479376 | K74: 0.02614619345 | L74: 0.7758920683 | M74: 0.1170069445 | N74: 0.8714422277 | O74: 4.340049556 | P74: 2.789544733 | Q74: 268.4273352 | R74: 0 | S74: 0.004814861812 | T74: 0.001239878149 | U74: -0.007719323367 | V74: 0 | AA74: 4.04 | AB74: 53 | AC74: =MMULT(AC73:AF73,AC$4:AF$7) -> 0.08701988899 | AD74: 0.02944742446 | AE74: 0.7507028242 | AF74: 0.1328298624 | AG74: 0.8714422277 | AH74: 32.11667978 | AI74: 12.43129996 | AJ74: 259.7128736 | AK74: 0 | AL74: 0.005175589004 | AM74: 0.001396425762 | AN74: -0.007468716448 | AO74: 0 | BA74: 66 | BB74: 11589.05499 | BC74: 2.311058597 | BD74: 21144.52179 | BE74: 1.491109896 | BJ74: 66 | BK74: 11589.05499 | BL74: 2.311058597 | BM74: 21144.52179 | BN74: 1.491109896 | BO74: 66 | CG74: 66 | CH74: =BM74-BK74 -> 9555.466799 | CI74: -0.8199487015 | CO74: 0 | CP74: 0 | CQ74: 0 | CR74: 0 | CS74: 0 | CT74: 0 | CU74: 0 | CV74: 0 | CW74: 0 | CX74: 0
H75: 4.05 | I75: 54 | J75: =MMULT(J74:M74,J$4:M$7) -> 0.07801012312 | K75: 0.02519514502 | L75: 0.7770466862 | M75: 0.1197480457 | N75: 0.8714422277 | O75: 4.182183469 | P75: 2.688077109 | Q75: 268.8267864 | R75: 0 | S75: 0.004639724781 | T75: 0.001194778499 | U75: -0.00773081062 | V75: 0 | AA75: 4.05 | AB75: 54 | AC75: =MMULT(AC74:AF74,AC$4:AF$7) -> 0.08381294256 | AD75: 0.02836219769 | AE75: 0.7521833304 | AF75: 0.1356415293 | AG75: 0.8714422277 | AH75: 30.93308287 | AI75: 11.97316891 | AJ75: 260.225069 | AK75: 0 | AL75: 0.004984852876 | AM75: 0.001344963244 | AN75: -0.007483445954 | AO75: 0 | BA75: =1+BA74 -> 67 | BB75: 15715.04632 | BC75: 1.876961615 | BD75: 21569.05155 | BE75: 1.907068763 | BJ75: =1+BJ74 -> 67 | BK75: 15715.04632 | BL75: 1.876961615 | BM75: 21569.05155 | BN75: 1.907068763 | BO75: 67 | CG75: 67 | CH75: 5854.005234 | CI75: 0.03010714805 | CO75: 0 | CP75: 0 | CQ75: 0 | CR75: 0 | CS75: 0 | CT75: 0 | CU75: 0 | CV75: 0 | CW75: 0 | CX75: 0
H76: 4.06 | I76: 55 | J76: =MMULT(J75:M75,J$4:M$7) -> 0.07517256269 | K76: 0.02427869028 | L76: 0.7780566603 | M76: 0.1224920868 | N76: 0.8714422277 | O76: 4.030059644 | P76: 2.590300295 | Q76: 269.1761967 | R76: 0 | S76: 0.00447095823 | T76: 0.001151319316 | U76: -0.007740858818 | V76: 0 | AA76: 4.06 | AB76: 55 | AC76: =MMULT(AC75:AF75,AC$4:AF$7) -> 0.08072418183 | AD76: 0.02731696482 | AE76: 0.7535074371 | AF76: 0.1384514163 | AG76: 0.8714422277 | AH76: 29.79310509 | AI76: 11.53192138 | AJ76: 260.6831564 | AK76: 0 | AL76: 0.004801145952 | AM76: 0.001295397276 | AN76: -0.007496619445 | AO76: 0 | BA76: 68 | BB76: 16284.74203 | BC76: 1.470643761 | BD76: 22071.15103 | BE76: 1.445022425 | BJ76: 68 | BK76: 16284.74203 | BL76: 1.470643761 | BM76: 22071.15103 | BN76: 1.445022425 | BO76: 68 | CG76: 68 | CH76: 5786.409003 | CI76: -0.02562133596 | CO76: 0 | CP76: 0 | CQ76: 0 | CR76: 0 | CS76: 0 | CT76: 0 | CU76: 0 | CV76: 0 | CW76: 0 | CX76: 0
H77: 4.07 | I77: 56 | J77: =MMULT(J76:M76,J$4:M$7) -> 0.07243821641 | K77: 0.0233955709 | L77: 0.7789276105 | M77: 0.1252386022 | N77: 0.8714422277 | O77: 3.88346921 | P77: 2.49608004 | Q77: 269.4775103 | R77: 0 | S77: 0.004308330436 | T77: 0.001109440928 | U77: -0.007749523872 | V77: 0 | AA77: 4.07 | AB77: 56 | AC77: =MMULT(AC76:AF76,AC$4:AF$7) -> 0.07774925128 | AD77: 0.02631025194 | AE77: 0.7546812637 | AF77: 0.1412592331 | AG77: 0.8714422277 | AH77: 28.69513895 | AI77: 11.10693515 | AJ77: 261.0892531 | AK77: 0 | AL77: 0.004624209185 | AM77: 0.001247657963 | AN77: -0.007508297805 | AO77: 0 | BA77: 69 | BB77: 13712.38847 | BC77: 1.048122681 | BD77: 19829.29196 | BE77: 0.7864477537 | BJ77: 69 | BK77: 13712.38847 | BL77: 1.048122681 | BM77: 19829.29196 | BN77: 0.7864477537 | BO77: 69 | CG77: 69 | CH77: 6116.903498 | CI77: -0.2616749276 | CO77: 0 | CP77: 0 | CQ77: 0 | CR77: 0 | CS77: 0 | CT77: 0 | CU77: 0 | CV77: 0 | CW77: 0 | CX77: 0
H78: 4.08 | I78: 57 | J78: =MMULT(J77:M77,J$4:M$7) -> 0.06980332996 | K78: 0.02254457434 | L78: 0.7796649513 | M78: 0.1279871444 | N78: 0.8714422277 | O78: 3.742210895 | P78: 2.405286977 | Q78: 269.7326005 | R78: 0 | S78: 0.004151618109 | T78: 0.001069085836 | U78: -0.007756859649 | V78: 0 | AA78: 4.08 | AB78: 57 | AC78: =MMULT(AC77:AF77,AC$4:AF$7) -> 0.07488395592 | AD78: 0.02534063948 | AE78: 0.7557107031 | AF78: 0.1440647015 | AG78: 0.8714422277 | AH78: 27.63763619 | AI78: 10.69761096 | AJ78: 261.4453976 | AK78: 0 | AL78: 0.004453793073 | AM78: 0.001201677989 | AN78: -0.007518539663 | AO78: 0 | BA78: 70 | BB78: 17851.94943 | BC78: 0.4785038376 | BD78: 21138.43692 | BE78: 0.8345611607 | BJ78: 70 | BK78: 17851.94943 | BL78: 0.4785038376 | BM78: 21138.43692 | BN78: 0.8345611607 | BO78: 70 | CG78: 70 | CH78: 3286.487492 | CI78: 0.3560573231 | CO78: 0 | CP78: 0 | CQ78: 0 | CR78: 0 | CS78: 0 | CT78: 1 | CU78: 1 | CV78: 1 | CW78: 1 | CX78: 1
H79: 4.09 | I79: 58 | J79: =MMULT(J78:M78,J$4:M$7) -> 0.06726428554 | K79: 0.02172453215 | L79: 0.7802738985 | M79: 0.1307372838 | N79: 0.8714422277 | O79: 3.606090746 | P79: 2.317796445 | Q79: 269.9432716 | R79: 0 | S79: 0.004000606076 | T79: 0.001030198631 | U79: -0.007762918045 | V79: 0 | AA79: 4.09 | AB79: 58 | AC79: =MMULT(AC78:AF78,AC$4:AF$7) -> 0.07212425538 | AD79: 0.02440676018 | AE79: 0.7566014299 | AF79: 0.1468675545 | AG79: 0.8714422277 | AH79: 26.6191056 | AI79: 10.3033716 | AJ79: 261.7535531 | AK79: 0 | AL79: 0.004289657312 | AM79: 0.001157392516 | AN79: -0.007527401473 | AO79: 0 | BA79: 71 | BB79: 15580.57803 | BC79: 1.432225379 | BD79: 21440.09832 | BE79: 1.487715944 | BJ79: 71 | BK79: 15580.57803 | BL79: 1.432225379 | BM79: 21440.09832 | BN79: 1.487715944 | BO79: 71 | CG79: 71 | CH79: 5859.520288 | CI79: 0.05549056438 | CO79: 0 | CP79: 0 | CQ79: 0 | CR79: 0 | CS79: 0 | CT79: 0 | CU79: 0 | CV79: 0 | CW79: 0 | CX79: 0
H80: 4.10 | I80: 59 | J80: =MMULT(J79:M79,J$4:M$7) -> 0.06481759699 | K80: 0.02093431838 | L80: 0.7807594775 | M80: 0.1334886071 | N80: 0.8714422277 | O80: 3.474921867 | P80: 2.233488317 | Q80: 270.1112624 | R80: 0 | S80: 0.003855086994 | T80: 0.000992725919 | U80: -0.007767749053 | V80: 0 | AA80: 4.10 | AB80: 59 | AC80: =MMULT(AC79:AF79,AC$4:AF$7) -> 0.06946625816 | AD80: 0.02350729715 | AE80: 0.7573589081 | AF80: 0.1496675366 | AG80: 0.8714422277 | AH80: 25.63811095 | AI80: 9.923661152 | AJ80: 262.0156099 | AK80: 0 | AL80: 0.00413157045 | AM80: 0.001114739097 | AN80: -0.007534937597 | AO80: 0 | BA80: 72 | BB80: 13565.60757 | BC80: 1.702306691 | BD80: 21344.92281 | BE80: 0.8346906353 | BJ80: 72 | BK80: 13565.60757 | BL80: 1.702306691 | BM80: 21344.92281 | BN80: 0.8346906353 | BO80: 72 | CG80: 72 | CH80: 7779.315245 | CI80: -0.8676160558 | CO80: 0 | CP80: 0 | CQ80: 0 | CR80: 0 | CS80: 0 | CT80: 0 | CU80: 0 | CV80: 0 | CW80: 0 | CX80: 0
H81: 4.11 | I81: 60 | J81: =MMULT(J80:M80,J$4:M$7) -> 0.06245990492 | K81: 0.02017284806 | L81: 0.7811265292 | M81: 0.1362407178 | N81: 0.8714422277 | O81: 3.348524158 | P81: 2.152246834 | Q81: 270.2382474 | R81: 0 | S81: 0.00371486106 | T81: 0.0009566162491 | U81: -0.007771400838 | V81: 0 | AA81: 4.11 | AB81: 60 | AC81: =MMULT(AC80:AF80,AC$4:AF$7) -> 0.06690621619 | AD81: 0.02264098207 | AE81: 0.7579883991 | AF81: 0.1524644026 | AG81: 0.8714422277 | AH81: 24.69326892 | AI81: 9.557944187 | AJ81: 262.2333884 | AK81: 0 | AL81: 0.003979309567 | AM81: 0.001073657586 | AN81: -0.007541200381 | AO81: 0 | BA81: 73 | BB81: 20077.4824 | BC81: -0.9501546506 | BD81: 21716.59632 | BE81: 0.05061783606 | BJ81: 73 | BK81: 20077.4824 | BL81: -0.9501546506 | BM81: 21716.59632 | BN81: 0.05061783606 | BO81: 73 | CG81: 73 | CH81: 1639.113923 | CI81: 1.000772487 | CO81: 0 | CP81: 0 | CQ81: 0 | CR81: 0 | CS81: 0 | CT81: 0 | CU81: 0 | CV81: 0 | CW81: 0 | CX81: 0
H82: 5.00 | I82: 61 | J82: =MMULT(J81:M81,J$4:M$7) -> 0.06018797215 | K82: 0.01943907566 | L82: 0.7813797175 | M82: 0.1389932347 | N82: 0.8419731669 | O82: 3.117607799 | P82: 2.003826521 | Q82: 261.1843868 | R82: 0 | S82: 0.003458681876 | T82: 0.0008906473833 | U82: -0.007511033623 | V82: 0 | AA82: 5.00 | AB82: 61 | AC82: =MMULT(AC81:AF81,AC$4:AF$7) -> 0.06444051951 | AD82: 0.02180659332 | AE82: 0.7584949695 | AF82: 0.1552579177 | AG82: 0.8419731669 | AH82: 22.97898279 | AI82: 8.894400966 | AJ82: 253.5349191 | AK82: 0 | AL82: 0.003703053101 | AM82: 0.0009991208234 | AN82: -0.007291053364 | AO82: 0 | BA82: 74 | BB82: 15696.92231 | BC82: 0.754043837 | BD82: 21113.08444 | BE82: 0.8151882737 | BJ82: 74 | BK82: 15696.92231 | BL82: 0.754043837 | BM82: 21113.08444 | BN82: 0.8151882737 | BO82: 74 | CG82: 74 | CH82: 5416.162135 | CI82: 0.06114443673 | CO82: 0 | CP82: 0 | CQ82: 0 | CR82: 0 | CS82: 0 | CT82: 0 | CU82: 0 | CV82: 0 | CW82: 0 | CX82: 0
O83: SILENT | P83: ACTIVE | Q83: COMPL | R83: DEAD | S83: SILENT | T83: ACTIVE | U83: COMPL | V83: DEAD | AH83: SILENT | AI83: ACTIVE | AJ83: COMPL | AK83: DEAD | AL83: SILENT | AM83: ACTIVE | AN83: COMPL | AO83: DEAD | BA83: 75 | BB83: 14554.98088 | BC83: 1.75220509 | BD83: 21872.83449 | BE83: 1.424387714 | BJ83: 75 | BK83: 14554.98088 | BL83: 1.75220509 | BM83: 21872.83449 | BN83: 1.424387714 | BO83: 75 | CG83: 75 | CH83: 7317.853612 | CI83: -0.3278173761 | CO83: 0 | CP83: 0 | CQ83: 0 | CR83: 0 | CS83: 0 | CT83: 0 | CU83: 0 | CV83: 0 | CW83: 0 | CX83: 0
F84: NO CORRECTION | H84: TOTALS | J84: =SUM(J22:J81) -> 12.11972449 | K84: =SUM(K22:K81) -> 6.628274918 | L84: 37.5968807 | M84: 3.655119886 | O84: =SUM(O22:O81) -> 713.0304377 | P84: 790.5170052 | Q84: 13785.19516 | R84: 0 | S84: 0.7910377476 | T84: 0.3513637007 | U84: -0.3964289964 | V84: 0 | AA84: TOTALS | AC84: =SUM(AC22:AC81) -> 13.28713023 | AD84: =SUM(AD22:AD81) -> 7.111256912 | AE84: 35.29915253 | AF84: 4.30246033 | AH84: =SUM(AH22:AH81) -> 5384.261222 | AI84: 3350.675242 | AJ84: 12921.8036 | AK84: 0 | AL84: 0.8676713585 | AM84: 0.3763861579 | AN84: -0.3715999355 | AO84: 0 | BA84: 76 | BB84: 12289.72769 | BC84: 1.293760265 | BD84: 20673.00375 | BE84: 0.7730444065 | BJ84: 76 | BK84: 12289.72769 | BL84: 1.293760265 | BM84: 20673.00375 | BN84: 0.7730444065 | BO84: 76 | CG84: 76 | CH84: 8383.276058 | CI84: -0.520715858 | CO84: 0 | CP84: 0 | CQ84: 0 | CR84: 0 | CS84: 0 | CT84: 0 | CU84: 0 | CV84: 0 | CW84: 0 | CX84: 0
BA85: 77 | BB85: 15888.12074 | BC85: 1.356197065 | BD85: 20192.97393 | BE85: 1.064433762 | BJ85: 77 | BK85: 15888.12074 | BL85: 1.356197065 | BM85: 20192.97393 | BN85: 1.064433762 | BO85: 77 | CG85: 77 | CH85: 4304.853193 | CI85: -0.2917633023 | CO85: 0 | CP85: 0 | CQ85: 0 | CR85: 0 | CS85: 0 | CT85: 0 | CU85: 0 | CV85: 0 | CW85: 0 | CX85: 0
Q86: TOTAL COST | R86: =O84+P84+Q84+R84 -> 15288.7426 | U86: TOTAL OUTCOME | V86: =S84+T84+U84+V84 -> 0.745972452 | AJ86: TOTAL COST | AK86: =AH84+AI84+AJ84+AK84 -> 21656.74006 | AN86: TOTAL OUTCOME | AO86: =AL84+AM84+AN84+AO84 -> 0.8724575809 | BA86: 78 | BB86: 17290.87999 | BC86: -0.2085361067 | BD86: 20827.72072 | BE86: 0.458611508 | BJ86: 78 | BK86: 17290.87999 | BL86: -0.2085361067 | BM86: 20827.72072 | BN86: 0.458611508 | BO86: 78 | CG86: 78 | CH86: 3536.840726 | CI86: 0.6671476147 | CO86: 0 | CP86: 0 | CQ86: 0 | CR86: 0 | CS86: 0 | CT86: 0 | CU86: 0 | CV86: 0 | CW86: 0 | CX86: 1
BA87: 79 | BB87: 18161.53814 | BC87: 0.05106665268 | BD87: 21416.40962 | BE87: 0.3795957803 | BJ87: 79 | BK87: 18161.53814 | BL87: 0.05106665268 | BM87: 21416.40962 | BN87: 0.3795957803 | BO87: 79 | CG87: 79 | CH87: 3254.871473 | CI87: 0.3285291276 | CO87: 0 | CP87: 0 | CQ87: 0 | CR87: 0 | CS87: 0 | CT87: 0 | CU87: 0 | CV87: 0 | CW87: 0 | CX87: 0
BA88: 80 | BB88: 18238.4104 | BC88: 1.091819582 | BD88: 21318.40182 | BE88: 1.419987186 | BJ88: 80 | BK88: 18238.4104 | BL88: 1.091819582 | BM88: 21318.40182 | BN88: 1.419987186 | BO88: 80 | CG88: 80 | CH88: 3079.991426 | CI88: 0.3281676046 | CO88: 0 | CP88: 0 | CQ88: 0 | CR88: 1 | CS88: 1 | CT88: =IF(AND((CT$8*$BL88-$BK88) <= ($BN88*CT$8-$BM88), ($BN88*CT$8-$BM88) >= 0),1,0) -> 1 | CU88: 1 | CV88: 1 | CW88: 1 | CX88: =IF(AND((CX$8*$BL88-$BK88) <= ($BN88*CX$8-$BM88), ($BN88*CX$8-$BM88) >= 0),1,0) -> 1
O89: SILENT | P89: ACTIVE | Q89: COMPL | R89: DEAD | S89: SILENT | T89: ACTIVE | U89: COMPL | V89: DEAD | AH89: SILENT | AI89: ACTIVE | AJ89: COMPL | AK89: DEAD | AL89: SILENT | AM89: ACTIVE | AN89: COMPL | AO89: DEAD | BA89: 81 | BB89: 10370.8731 | BC89: 2.246765105 | BD89: 21216.38783 | BE89: 1.133497931 | BJ89: 81 | BK89: 10370.8731 | BL89: 2.246765105 | BM89: 21216.38783 | BN89: 1.133497931 | BO89: 81 | CG89: 81 | CH89: 10845.51473 | CI89: -1.113267173 | CO89: =IF(AND((CO$8*$BL89-$BK89) <= ($BN89*CO$8-$BM89), ($BN89*CO$8-$BM89) >= 0),1,0) -> 0 | CP89: 0 | CQ89: =IF(AND((CQ$8*$BL89-$BK89) <= ($BN89*CQ$8-$BM89), ($BN89*CQ$8-$BM89) >= 0),1,0) -> 0 | CR89: 0 | CS89: 0 | CT89: 0 | CU89: 0 | CV89: 0 | CW89: 0 | CX89: 0
F90: HALF CYCLE CORRECTION | H90: TOTALS | J90: =0.5*J22+SUM(J23:J81)+0.5*J82 -> 12.14981848 | K90: =0.5*K22+SUM(K23:K81)+0.5*K82 -> 6.137994456 | L90: 37.98757056 | M90: 3.724616504 | O90: 714.5892416 | P90: 730.3041426 | Q90: 13915.78735 | R90: 0 | S90: =0.5*S22+SUM(S23:S81)+0.5*S82 -> 0.7927670886 | T90: =0.5*T22+SUM(T23:T81)+0.5*T82 -> 0.3246006911 | U90: =0.5*U22+SUM(U23:U81)+0.5*U82 -> -0.4001845132 | V90: =0.5*V22+SUM(V23:V81)+0.5*V82 -> 0 | AA90: TOTALS | AC90: =0.5*AC22+SUM(AC23:AC81)+0.5*AC82 -> 13.31935049 | AD90: =0.5*AD22+SUM(AD23:AD81)+0.5*AD82 -> 6.622160208 | AE90: 35.67840001 | AF90: 4.380089289 | AH90: 5395.750713 | AI90: 3112.907666 | AJ90: 13048.57106 | AK90: 0 | AL90: =0.5*AL22+SUM(AL23:AL81)+0.5*AL82 -> 0.8695228851 | AM90: =0.5*AM22+SUM(AM23:AM81)+0.5*AM82 -> 0.349677385 | AN90: -0.3752454622 | AO90: 0 | BA90: 82 | BB90: 14503.67121 | BC90: 0.9738560176 | BD90: 19811.366 | BE90: 0.9977996924 | BJ90: 82 | BK90: 14503.67121 | BL90: 0.9738560176 | BM90: 19811.366 | BN90: 0.9977996924 | BO90: 82 | CG90: 82 | CH90: 5307.694791 | CI90: 0.02394367478 | CO90: 0 | CP90: 0 | CQ90: 0 | CR90: 0 | CS90: 0 | CT90: 0 | CU90: 0 | CV90: 0 | CW90: 0 | CX90: 0
BA91: 83 | BB91: 15223.1849 | BC91: 0.1223909098 | BD91: 20482.67374 | BE91: 0.3243350695 | BJ91: 83 | BK91: 15223.1849 | BL91: 0.1223909098 | BM91: 20482.67374 | BN91: 0.3243350695 | BO91: 83 | CG91: 83 | CH91: 5259.488841 | CI91: 0.2019441597 | CO91: 0 | CP91: 0 | CQ91: 0 | CR91: 0 | CS91: 0 | CT91: 0 | CU91: 0 | CV91: 0 | CW91: 0 | CX91: 0
Q92: TOTAL COST | R92: =O90+P90+Q90+R90 -> 15360.68074 | U92: TOTAL OUTCOME | V92: =S90+T90+U90+V90 -> 0.7171832665 | AJ92: TOTAL COST | AK92: =AH90+AI90+AJ90+AK90 -> 21557.22944 | AN92: TOTAL OUTCOME | AO92: =AL90+AM90+AN90+AO90 -> 0.8439548079 | BA92: 84 | BB92: 13456.14617 | BC92: 1.366166623 | BD92: 21647.72762 | BE92: 1.011735755 | BJ92: 84 | BK92: 13456.14617 | BL92: 1.366166623 | BM92: 21647.72762 | BN92: 1.011735755 | BO92: 84 | CG92: 84 | CH92: 8191.581452 | CI92: -0.3544308684 | CO92: 0 | CP92: 0 | CQ92: 0 | CR92: 0 | CS92: 0 | CT92: 0 | CU92: 0 | CV92: 0 | CW92: 0 | CX92: 0
BA93: 85 | BB93: 15162.7469 | BC93: 1.25803878 | BD93: 21027.58025 | BE93: 1.159010198 | BJ93: 85 | BK93: 15162.7469 | BL93: 1.25803878 | BM93: 21027.58025 | BN93: 1.159010198 | BO93: 85 | CG93: 85 | CH93: 5864.833352 | CI93: -0.09902858157 | CO93: 0 | CP93: 0 | CQ93: 0 | CR93: 0 | CS93: 0 | CT93: 0 | CU93: 0 | CV93: 0 | CW93: 0 | CX93: 0
BA94: 86 | BB94: 14237.183 | BC94: 1.514010742 | BD94: 21615.47904 | BE94: 0.9434227532 | BJ94: 86 | BK94: 14237.183 | BL94: 1.514010742 | BM94: 21615.47904 | BN94: 0.9434227532 | BO94: 86 | CG94: 86 | CH94: 7378.296044 | CI94: -0.570587989 | CO94: 0 | CP94: 0 | CQ94: 0 | CR94: 0 | CS94: 0 | CT94: 0 | CU94: 0 | CV94: 0 | CW94: 0 | CX94: 0
BA95: 87 | BB95: 14787.32329 | BC95: 0.795107565 | BD95: 21318.31149 | BE95: 0.4945842002 | BJ95: 87 | BK95: 14787.32329 | BL95: 0.795107565 | BM95: 21318.31149 | BN95: 0.4945842002 | BO95: 87 | CG95: 87 | CH95: 6530.988201 | CI95: -0.3005233648 | CO95: 0 | CP95: 0 | CQ95: 0 | CR95: 0 | CS95: 0 | CT95: 0 | CU95: 0 | CV95: 0 | CW95: 0 | CX95: 0
BA96: 88 | BB96: 14970.95337 | BC96: -0.6534920631 | BD96: 20559.76208 | BE96: -0.5879555852 | BJ96: 88 | BK96: 14970.95337 | BL96: -0.6534920631 | BM96: 20559.76208 | BN96: -0.5879555852 | BO96: 88 | CG96: 88 | CH96: 5588.808717 | CI96: 0.06553647788 | CO96: 0 | CP96: 0 | CQ96: 0 | CR96: 0 | CS96: 0 | CT96: 0 | CU96: 0 | CV96: 0 | CW96: 0 | CX96: 0
BA97: 89 | BB97: 16918.07695 | BC97: -0.2688434791 | BD97: 21381.91162 | BE97: 0.4173085742 | BJ97: 89 | BK97: 16918.07695 | BL97: -0.2688434791 | BM97: 21381.91162 | BN97: 0.4173085742 | BO97: 89 | CG97: 89 | CH97: 4463.834663 | CI97: 0.6861520533 | CO97: 0 | CP97: 0 | CQ97: 0 | CR97: 0 | CS97: 0 | CT97: 0 | CU97: 0 | CV97: 0 | CW97: 0 | CX97: 0
BA98: 90 | BB98: 17145.95825 | BC98: 1.204530075 | BD98: 21173.29846 | BE98: 1.294752154 | BJ98: 90 | BK98: 17145.95825 | BL98: 1.204530075 | BM98: 21173.29846 | BN98: 1.294752154 | BO98: 90 | CG98: 90 | CH98: 4027.340217 | CI98: 0.09022207947 | CO98: 0 | CP98: 0 | CQ98: 0 | CR98: 0 | CS98: 0 | CT98: 0 | CU98: 0 | CV98: 0 | CW98: 1 | CX98: 1
BA99: 91 | BB99: 17044.85185 | BC99: 1.376390455 | BD99: 21810.54486 | BE99: 1.631007115 | BJ99: 91 | BK99: 17044.85185 | BL99: 1.376390455 | BM99: 21810.54486 | BN99: 1.631007115 | BO99: 91 | CG99: 91 | CH99: 4765.693008 | CI99: 0.2546166597 | CO99: 0 | CP99: 0 | CQ99: 0 | CR99: 1 | CS99: 1 | CT99: 1 | CU99: 1 | CV99: 1 | CW99: 1 | CX99: 1
BA100: 92 | BB100: 17783.32297 | BC100: 0.5626400836 | BD100: 20968.71902 | BE100: 0.8201628726 | BJ100: 92 | BK100: 17783.32297 | BL100: 0.5626400836 | BM100: 20968.71902 | BN100: 0.8201628726 | BO100: 92 | CG100: 92 | CH100: 3185.396049 | CI100: 0.2575227891 | CO100: 0 | CP100: 0 | CQ100: 0 | CR100: 0 | CS100: 0 | CT100: 1 | CU100: 1 | CV100: 1 | CW100: 1 | CX100: 1
BA101: 93 | BB101: 17298.41447 | BC101: 0.6879934164 | BD101: 20836.76444 | BE101: 1.057333123 | BJ101: 93 | BK101: 17298.41447 | BL101: 0.6879934164 | BM101: 20836.76444 | BN101: 1.057333123 | BO101: 93 | CG101: 93 | CH101: 3538.34997 | CI101: 0.3693397068 | CO101: 0 | CP101: 0 | CQ101: 0 | CR101: 1 | CS101: 1 | CT101: 1 | CU101: 1 | CV101: 1 | CW101: 1 | CX101: 1
BA102: 94 | BB102: 13636.65696 | BC102: 0.8842385925 | BD102: 21345.41217 | BE102: 0.6346006715 | BJ102: 94 | BK102: 13636.65696 | BL102: 0.8842385925 | BM102: 21345.41217 | BN102: 0.6346006715 | BO102: 94 | CG102: 94 | CH102: 7708.755206 | CI102: -0.249637921 | CO102: 0 | CP102: 0 | CQ102: 0 | CR102: 0 | CS102: 0 | CT102: 0 | CU102: 0 | CV102: 0 | CW102: 0 | CX102: 0
BA103: 95 | BB103: 14324.9515 | BC103: 0.8519956844 | BD103: 20393.99353 | BE103: 0.5069000823 | BJ103: 95 | BK103: 14324.9515 | BL103: 0.8519956844 | BM103: 20393.99353 | BN103: 0.5069000823 | BO103: 95 | CG103: 95 | CH103: 6069.042026 | CI103: -0.3450956021 | CO103: 0 | CP103: 0 | CQ103: 0 | CR103: 0 | CS103: 0 | CT103: 0 | CU103: 0 | CV103: 0 | CW103: 0 | CX103: 0
BA104: 96 | BB104: 16500.69002 | BC104: 0.3942406246 | BD104: 21181.58195 | BE104: 0.6355561855 | BJ104: 96 | BK104: 16500.69002 | BL104: 0.3942406246 | BM104: 21181.58195 | BN104: 0.6355561855 | BO104: 96 | CG104: 96 | CH104: 4680.891936 | CI104: 0.2413155608 | CO104: 0 | CP104: 0 | CQ104: 0 | CR104: 0 | CS104: 0 | CT104: 0 | CU104: 1 | CV104: 1 | CW104: 1 | CX104: 1
BA105: 97 | BB105: 17325.04476 | BC105: 0.5039765564 | BD105: 21303.08489 | BE105: 0.6670828098 | BJ105: 97 | BK105: 17325.04476 | BL105: 0.5039765564 | BM105: 21303.08489 | BN105: 0.6670828098 | BO105: 97 | CG105: 97 | CH105: 3978.040134 | CI105: 0.1631062533 | CO105: 0 | CP105: 0 | CQ105: 0 | CR105: 0 | CS105: 0 | CT105: 0 | CU105: 1 | CV105: 1 | CW105: 1 | CX105: 1
BA106: 98 | BB106: 15958.39278 | BC106: 1.306577926 | BD106: 20509.09387 | BE106: 1.512368467 | BJ106: 98 | BK106: 15958.39278 | BL106: 1.306577926 | BM106: 20509.09387 | BN106: 1.512368467 | BO106: 98 | CG106: 98 | CH106: 4550.701095 | CI106: 0.205790541 | CO106: 0 | CP106: 0 | CQ106: 0 | CR106: 0 | CS106: 1 | CT106: 1 | CU106: 1 | CV106: 1 | CW106: 1 | CX106: 1
BA107: 99 | BB107: 17565.78687 | BC107: 0.3117244469 | BD107: 21543.32365 | BE107: 0.8230682237 | BJ107: 99 | BK107: 17565.78687 | BL107: 0.3117244469 | BM107: 21543.32365 | BN107: 0.8230682237 | BO107: 99 | CG107: 99 | CH107: 3977.53678 | CI107: 0.5113437768 | CO107: 0 | CP107: 0 | CQ107: 0 | CR107: 0 | CS107: 0 | CT107: 1 | CU107: 1 | CV107: 1 | CW107: 1 | CX107: 1
BA108: 100 | BB108: 18394.17708 | BC108: 0.4755197418 | BD108: 21347.01778 | BE108: 0.7826912185 | BJ108: 100 | BK108: 18394.17708 | BL108: 0.4755197418 | BM108: 21347.01778 | BN108: 0.7826912185 | BO108: 100 | CG108: 100 | CH108: 2952.840701 | CI108: 0.3071714768 | CO108: 0 | CP108: 0 | CQ108: 0 | CR108: 0 | CS108: 0 | CT108: 1 | CU108: 1 | CV108: 1 | CW108: 1 | CX108: 1
BA109: 101 | BB109: 15509.99341 | BC109: 0.8038303376 | BD109: 21409.45984 | BE109: 0.8431547602 | BJ109: 101 | BK109: 15509.99341 | BL109: 0.8038303376 | BM109: 21409.45984 | BN109: 0.8431547602 | BO109: 101 | CG109: 101 | CH109: 5899.466427 | CI109: 0.03932442263 | CO109: =IF(AND((CO$8*$BL109-$BK109) <= ($BN109*CO$8-$BM109), ($BN109*CO$8-$BM109) >= 0),1,0) -> 0 | CP109: 0 | CQ109: 0 | CR109: 0 | CS109: 0 | CT109: 0 | CU109: 0 | CV109: 0 | CW109: 0 | CX109: 0
BA110: 102 | BB110: 15105.07002 | BC110: 0.6237052285 | BD110: 21383.40224 | BE110: 0.7282241904 | BJ110: 102 | BK110: 15105.07002 | BL110: 0.6237052285 | BM110: 21383.40224 | BN110: 0.7282241904 | BO110: 102 | CG110: 102 | CH110: 6278.332219 | CI110: 0.1045189619 | CO110: 0 | CP110: 0 | CQ110: 0 | CR110: 0 | CS110: 0 | CT110: 0 | CU110: 0 | CV110: 0 | CW110: 0 | CX110: 0
BA111: 103 | BB111: 18697.14761 | BC111: -0.4985014124 | BD111: 21456.80524 | BE111: 0.1790848486 | BJ111: 103 | BK111: 18697.14761 | BL111: -0.4985014124 | BM111: 21456.80524 | BN111: 0.1790848486 | BO111: 103 | CG111: 103 | CH111: 2759.657623 | CI111: 0.677586261 | CO111: 0 | CP111: 0 | CQ111: 0 | CR111: 0 | CS111: 0 | CT111: 0 | CU111: 0 | CV111: 0 | CW111: 0 | CX111: 0
BA112: 104 | BB112: 14780.43132 | BC112: 1.083273353 | BD112: 21445.43229 | BE112: 0.7032143239 | BJ112: 104 | BK112: 14780.43132 | BL112: 1.083273353 | BM112: 21445.43229 | BN112: 0.7032143239 | BO112: 104 | CG112: 104 | CH112: 6665.000967 | CI112: -0.3800590289 | CO112: 0 | CP112: 0 | CQ112: 0 | CR112: 0 | CS112: 0 | CT112: 0 | CU112: 0 | CV112: 0 | CW112: 0 | CX112: 0
BA113: 105 | BB113: 15727.61098 | BC113: 0.9028542573 | BD113: 20073.59273 | BE113: 0.7310751041 | BJ113: 105 | BK113: 15727.61098 | BL113: 0.9028542573 | BM113: 20073.59273 | BN113: 0.7310751041 | BO113: 105 | CG113: 105 | CH113: 4345.981758 | CI113: -0.1717791533 | CO113: 0 | CP113: 0 | CQ113: 0 | CR113: 0 | CS113: 0 | CT113: 0 | CU113: 0 | CV113: 0 | CW113: 0 | CX113: 0
BA114: 106 | BB114: 14435.83563 | BC114: -0.5311835834 | BD114: 20448.00731 | BE114: -0.3525868621 | BJ114: 106 | BK114: 14435.83563 | BL114: -0.5311835834 | BM114: 20448.00731 | BN114: -0.3525868621 | BO114: 106 | CG114: 106 | CH114: 6012.171674 | CI114: 0.1785967213 | CO114: 0 | CP114: 0 | CQ114: 0 | CR114: 0 | CS114: 0 | CT114: 0 | CU114: 0 | CV114: 0 | CW114: 0 | CX114: 0
BA115: 107 | BB115: 14206.44506 | BC115: 1.955601215 | BD115: 22209.54703 | BE115: 0.97681149 | BJ115: 107 | BK115: 14206.44506 | BL115: 1.955601215 | BM115: 22209.54703 | BN115: 0.97681149 | BO115: 107 | CG115: 107 | CH115: 8003.101969 | CI115: -0.9787897255 | CO115: 0 | CP115: 0 | CQ115: 0 | CR115: 0 | CS115: 0 | CT115: 0 | CU115: 0 | CV115: 0 | CW115: 0 | CX115: 0
BA116: 108 | BB116: 17268.19739 | BC116: 1.075429566 | BD116: 20806.3306 | BE116: 1.244448537 | BJ116: 108 | BK116: 17268.19739 | BL116: 1.075429566 | BM116: 20806.3306 | BN116: 1.244448537 | BO116: 108 | CG116: 108 | CH116: 3538.133211 | CI116: 0.1690189713 | CO116: 0 | CP116: 0 | CQ116: 0 | CR116: 0 | CS116: 1 | CT116: 1 | CU116: 1 | CV116: 1 | CW116: 1 | CX116: 1
BA117: 109 | BB117: 16439.20474 | BC117: 0.6390009319 | BD117: 21402.93991 | BE117: 0.8047711854 | BJ117: 109 | BK117: 16439.20474 | BL117: 0.6390009319 | BM117: 21402.93991 | BN117: 0.8047711854 | BO117: 109 | CG117: 109 | CH117: 4963.735169 | CI117: 0.1657702536 | CO117: 0 | CP117: 0 | CQ117: 0 | CR117: 0 | CS117: 0 | CT117: 1 | CU117: 1 | CV117: 1 | CW117: 1 | CX117: 1
BA118: 110 | BB118: 16754.03491 | BC118: 1.52344508 | BD118: 21669.67737 | BE118: 1.621704198 | BJ118: 110 | BK118: 16754.03491 | BL118: 1.52344508 | BM118: 21669.67737 | BN118: 1.621704198 | BO118: 110 | CG118: 110 | CH118: 4915.642455 | CI118: 0.09825911753 | CO118: 0 | CP118: 0 | CQ118: 0 | CR118: 0 | CS118: 0 | CT118: 0 | CU118: 0 | CV118: 0 | CW118: 0 | CX118: 0
BA119: 111 | BB119: 16285.94868 | BC119: 0.07672816118 | BD119: 20798.96505 | BE119: 0.2644018527 | BJ119: 111 | BK119: 16285.94868 | BL119: 0.07672816118 | BM119: 20798.96505 | BN119: 0.2644018527 | BO119: 111 | CG119: 111 | CH119: 4513.016366 | CI119: 0.1876736916 | CO119: 0 | CP119: 0 | CQ119: 0 | CR119: 0 | CS119: 0 | CT119: 0 | CU119: 0 | CV119: 0 | CW119: 0 | CX119: 0
BA120: 112 | BB120: 18232.30777 | BC120: 0.3432846315 | BD120: 21441.77248 | BE120: 1.004447579 | BJ120: 112 | BK120: 18232.30777 | BL120: 0.3432846315 | BM120: 21441.77248 | BN120: 1.004447579 | BO120: 112 | CG120: 112 | CH120: 3209.464709 | CI120: 0.6611629477 | CO120: 0 | CP120: 0 | CQ120: 0 | CR120: 0 | CS120: 1 | CT120: 1 | CU120: 1 | CV120: 1 | CW120: 1 | CX120: 1
BA121: 113 | BB121: 16760.04021 | BC121: 0.9579795975 | BD121: 21062.02063 | BE121: 1.191182182 | BJ121: 113 | BK121: 16760.04021 | BL121: 0.9579795975 | BM121: 21062.02063 | BN121: 1.191182182 | BO121: 113 | CG121: 113 | CH121: 4301.980418 | CI121: 0.2332025843 | CO121: 0 | CP121: 0 | CQ121: 0 | CR121: 1 | CS121: 1 | CT121: 1 | CU121: 1 | CV121: 1 | CW121: 1 | CX121: 1
BA122: 114 | BB122: 16386.01819 | BC122: 0.7691101546 | BD122: 20691.03953 | BE122: 1.009305831 | BJ122: 114 | BK122: 16386.01819 | BL122: 0.7691101546 | BM122: 20691.03953 | BN122: 1.009305831 | BO122: 114 | CG122: 114 | CH122: 4305.021341 | CI122: 0.2401956763 | CO122: 0 | CP122: 0 | CQ122: 0 | CR122: 0 | CS122: 1 | CT122: 1 | CU122: 1 | CV122: 1 | CW122: 1 | CX122: 1
BA123: 115 | BB123: 17879.13628 | BC123: 0.06637979352 | BD123: 21272.96029 | BE123: 0.5515201128 | BJ123: 115 | BK123: 17879.13628 | BL123: 0.06637979352 | BM123: 21272.96029 | BN123: 0.5515201128 | BO123: 115 | CG123: 115 | CH123: 3393.824019 | CI123: 0.4851403193 | CO123: 0 | CP123: 0 | CQ123: 0 | CR123: 0 | CS123: 0 | CT123: 0 | CU123: 0 | CV123: 1 | CW123: 1 | CX123: 1
BA124: 116 | BB124: 13598.60095 | BC124: 1.532097277 | BD124: 20679.10157 | BE124: 1.202091671 | BJ124: 116 | BK124: 13598.60095 | BL124: 1.532097277 | BM124: 20679.10157 | BN124: 1.202091671 | BO124: 116 | CG124: 116 | CH124: 7080.50062 | CI124: -0.3300056056 | CO124: 0 | CP124: 0 | CQ124: 0 | CR124: 0 | CS124: 0 | CT124: 0 | CU124: 0 | CV124: 0 | CW124: 0 | CX124: 0
BA125: 117 | BB125: 12756.31825 | BC125: 1.312461639 | BD125: 20733.44925 | BE125: 0.7131779843 | BJ125: 117 | BK125: 12756.31825 | BL125: 1.312461639 | BM125: 20733.44925 | BN125: 0.7131779843 | BO125: 117 | CG125: 117 | CH125: 7977.130998 | CI125: -0.5992836543 | CO125: 0 | CP125: 0 | CQ125: 0 | CR125: 0 | CS125: 0 | CT125: 0 | CU125: 0 | CV125: 0 | CW125: 0 | CX125: 0
BA126: 118 | BB126: 14614.50635 | BC126: 0.5760009298 | BD126: 21033.85501 | BE126: 0.6778557779 | BJ126: 118 | BK126: 14614.50635 | BL126: 0.5760009298 | BM126: 21033.85501 | BN126: 0.6778557779 | BO126: 118 | CG126: 118 | CH126: 6419.348666 | CI126: 0.101854848 | CO126: 0 | CP126: 0 | CQ126: 0 | CR126: 0 | CS126: 0 | CT126: 0 | CU126: 0 | CV126: 0 | CW126: 0 | CX126: 0
BA127: 119 | BB127: 13571.61497 | BC127: 1.450068202 | BD127: 21146.39495 | BE127: 0.9247150892 | BJ127: 119 | BK127: 13571.61497 | BL127: 1.450068202 | BM127: 21146.39495 | BN127: 0.9247150892 | BO127: 119 | CG127: 119 | CH127: 7574.779976 | CI127: -0.5253531128 | CO127: 0 | CP127: 0 | CQ127: 0 | CR127: 0 | CS127: 0 | CT127: 0 | CU127: 0 | CV127: 0 | CW127: 0 | CX127: 0
BA128: 120 | BB128: 18740.44439 | BC128: 1.377871345 | BD128: 21816.52892 | BE128: 1.683194014 | BJ128: 120 | BK128: 18740.44439 | BL128: 1.377871345 | BM128: 21816.52892 | BN128: 1.683194014 | BO128: 120 | CG128: 120 | CH128: 3076.084533 | CI128: 0.3053226692 | CO128: 0 | CP128: 0 | CQ128: 1 | CR128: 1 | CS128: 1 | CT128: 1 | CU128: 1 | CV128: 1 | CW128: 1 | CX128: 1
BA129: 121 | BB129: 16069.76153 | BC129: 0.7743706723 | BD129: 21516.09173 | BE129: 0.7016818713 | BJ129: 121 | BK129: 16069.76153 | BL129: 0.7743706723 | BM129: 21516.09173 | BN129: 0.7016818713 | BO129: 121 | CG129: 121 | CH129: 5446.330196 | CI129: -0.07268880108 | CO129: =IF(AND((CO$8*$BL129-$BK129) <= ($BN129*CO$8-$BM129), ($BN129*CO$8-$BM129) >= 0),1,0) -> 0 | CP129: 0 | CQ129: 0 | CR129: 0 | CS129: 0 | CT129: 0 | CU129: 0 | CV129: 0 | CW129: 0 | CX129: 0
BA130: 122 | BB130: 16555.25235 | BC130: 0.5149261665 | BD130: 21017.46928 | BE130: 0.8316095598 | BJ130: 122 | BK130: 16555.25235 | BL130: 0.5149261665 | BM130: 21017.46928 | BN130: 0.8316095598 | BO130: 122 | CG130: 122 | CH130: 4462.21693 | CI130: 0.3166833933 | CO130: 0 | CP130: 0 | CQ130: 0 | CR130: 0 | CS130: 0 | CT130: 1 | CU130: 1 | CV130: 1 | CW130: 1 | CX130: 1
BA131: 123 | BB131: 14990.07689 | BC131: 0.662962098 | BD131: 21769.74484 | BE131: 0.5720952988 | BJ131: 123 | BK131: 14990.07689 | BL131: 0.662962098 | BM131: 21769.74484 | BN131: 0.5720952988 | BO131: 123 | CG131: 123 | CH131: 6779.667956 | CI131: -0.09086679923 | CO131: 0 | CP131: 0 | CQ131: 0 | CR131: 0 | CS131: 0 | CT131: 0 | CU131: 0 | CV131: 0 | CW131: 0 | CX131: 0
BA132: 124 | BB132: 16593.14506 | BC132: -0.1801209268 | BD132: 21258.18901 | BE132: -0.2550186133 | BJ132: 124 | BK132: 16593.14506 | BL132: -0.1801209268 | BM132: 21258.18901 | BN132: -0.2550186133 | BO132: 124 | CG132: 124 | CH132: 4665.043949 | CI132: -0.07489768651 | CO132: 0 | CP132: 0 | CQ132: 0 | CR132: 0 | CS132: 0 | CT132: 0 | CU132: 0 | CV132: 0 | CW132: 0 | CX132: 0
BA133: 125 | BB133: 15808.93075 | BC133: 1.21730802 | BD133: 21776.26037 | BE133: 1.027485781 | BJ133: 125 | BK133: 15808.93075 | BL133: 1.21730802 | BM133: 21776.26037 | BN133: 1.027485781 | BO133: 125 | CG133: 125 | CH133: 5967.329621 | CI133: -0.1898222384 | CO133: 0 | CP133: 0 | CQ133: 0 | CR133: 0 | CS133: 0 | CT133: 0 | CU133: 0 | CV133: 0 | CW133: 0 | CX133: 0
BA134: 126 | BB134: 16914.58216 | BC134: 0.956299852 | BD134: 21147.59823 | BE134: 1.232004081 | BJ134: 126 | BK134: 16914.58216 | BL134: 0.956299852 | BM134: 21147.59823 | BN134: 1.232004081 | BO134: 126 | CG134: 126 | CH134: 4233.016068 | CI134: 0.2757042292 | CO134: 0 | CP134: 0 | CQ134: 0 | CR134: 1 | CS134: 1 | CT134: 1 | CU134: 1 | CV134: 1 | CW134: 1 | CX134: 1
BA135: 127 | BB135: 17916.43417 | BC135: 0.5809572555 | BD135: 20985.70034 | BE135: 0.7725992217 | BJ135: 127 | BK135: 17916.43417 | BL135: 0.5809572555 | BM135: 20985.70034 | BN135: 0.7725992217 | BO135: 127 | CG135: 127 | CH135: 3069.266164 | CI135: 0.1916419662 | CO135: 0 | CP135: 0 | CQ135: 0 | CR135: 0 | CS135: 0 | CT135: 1 | CU135: 1 | CV135: 1 | CW135: 1 | CX135: 1
BA136: 128 | BB136: 17952.68692 | BC136: 0.4786473957 | BD136: 20575.89602 | BE136: 0.7682030023 | BJ136: 128 | BK136: 17952.68692 | BL136: 0.4786473957 | BM136: 20575.89602 | BN136: 0.7682030023 | BO136: 128 | CG136: 128 | CH136: 2623.209097 | CI136: 0.2895556065 | CO136: 0 | CP136: 0 | CQ136: 0 | CR136: 0 | CS136: 0 | CT136: 1 | CU136: 1 | CV136: 1 | CW136: 1 | CX136: 1
BA137: 129 | BB137: 13834.0315 | BC137: 0.9915390742 | BD137: 21488.05881 | BE137: 0.4745582277 | BJ137: 129 | BK137: 13834.0315 | BL137: 0.9915390742 | BM137: 21488.05881 | BN137: 0.4745582277 | BO137: 129 | CG137: 129 | CH137: 7654.027308 | CI137: -0.5169808465 | CO137: 0 | CP137: 0 | CQ137: 0 | CR137: 0 | CS137: 0 | CT137: 0 | CU137: 0 | CV137: 0 | CW137: 0 | CX137: 0
BA138: 130 | BB138: 14132.88677 | BC138: 1.089745555 | BD138: 20372.34363 | BE138: 0.8461407196 | BJ138: 130 | BK138: 14132.88677 | BL138: 1.089745555 | BM138: 20372.34363 | BN138: 0.8461407196 | BO138: 130 | CG138: 130 | CH138: =BM138-BK138 -> 6239.456858 | CI138: -0.2436048355 | CO138: 0 | CP138: 0 | CQ138: 0 | CR138: 0 | CS138: 0 | CT138: 0 | CU138: 0 | CV138: 0 | CW138: 0 | CX138: 0
BA139: =1+BA138 -> 131 | BB139: 16655.63571 | BC139: 0.9212237538 | BD139: 21439.63756 | BE139: 1.259155387 | BJ139: =1+BJ138 -> 131 | BK139: 16655.63571 | BL139: 0.9212237538 | BM139: 21439.63756 | BN139: 1.259155387 | BO139: 131 | CG139: 131 | CH139: 4784.001847 | CI139: 0.3379316333 | CO139: 0 | CP139: 0 | CQ139: 0 | CR139: 1 | CS139: 1 | CT139: 1 | CU139: 1 | CV139: 1 | CW139: 1 | CX139: 1
BA140: 132 | BB140: 14573.76651 | BC140: 0.9229745228 | BD140: 20198.22879 | BE140: 0.7801127788 | BJ140: 132 | BK140: 14573.76651 | BL140: 0.9229745228 | BM140: 20198.22879 | BN140: 0.7801127788 | BO140: 132 | CG140: 132 | CH140: 5624.46228 | CI140: -0.142861744 | CO140: 0 | CP140: 0 | CQ140: 0 | CR140: 0 | CS140: 0 | CT140: 0 | CU140: 0 | CV140: 0 | CW140: 0 | CX140: 0
BA141: 133 | BB141: 14997.75969 | BC141: 0.849198988 | BD141: 20189.52559 | BE141: 0.9192481723 | BJ141: 133 | BK141: 14997.75969 | BL141: 0.849198988 | BM141: 20189.52559 | BN141: 0.9192481723 | BO141: 133 | CG141: 133 | CH141: 5191.765892 | CI141: 0.07004918438 | CO141: 0 | CP141: 0 | CQ141: 0 | CR141: 0 | CS141: 0 | CT141: 0 | CU141: 0 | CV141: 0 | CW141: 0 | CX141: 0
BA142: 134 | BB142: 17736.36292 | BC142: -0.1849708591 | BD142: 21026.46403 | BE142: 0.600304494 | BJ142: 134 | BK142: 17736.36292 | BL142: -0.1849708591 | BM142: 21026.46403 | BN142: 0.600304494 | BO142: 134 | CG142: 134 | CH142: 3290.101109 | CI142: 0.7852753531 | CO142: 0 | CP142: 0 | CQ142: 0 | CR142: 0 | CS142: 0 | CT142: 0 | CU142: 0 | CV142: 1 | CW142: 1 | CX142: 1
BA143: 135 | BB143: 17099.379 | BC143: 0.5141379857 | BD143: 21710.01511 | BE143: 0.4210988565 | BJ143: 135 | BK143: 17099.379 | BL143: 0.5141379857 | BM143: 21710.01511 | BN143: 0.4210988565 | BO143: 135 | CG143: 135 | CH143: 4610.636105 | CI143: -0.09303912914 | CO143: 0 | CP143: 0 | CQ143: 0 | CR143: 0 | CS143: 0 | CT143: 0 | CU143: 0 | CV143: 0 | CW143: 0 | CX143: 0
BA144: 136 | BB144: 14160.21857 | BC144: 0.4346811157 | BD144: 21116.61727 | BE144: 0.2770974276 | BJ144: 136 | BK144: 14160.21857 | BL144: 0.4346811157 | BM144: 21116.61727 | BN144: 0.2770974276 | BO144: 136 | CG144: 136 | CH144: 6956.398699 | CI144: -0.1575836882 | CO144: 0 | CP144: 0 | CQ144: 0 | CR144: 0 | CS144: 0 | CT144: 0 | CU144: 0 | CV144: 0 | CW144: 0 | CX144: 0
BA145: 137 | BB145: 16185.38028 | BC145: 0.3404467271 | BD145: 21514.35685 | BE145: 0.4947510057 | BJ145: 137 | BK145: 16185.38028 | BL145: 0.3404467271 | BM145: 21514.35685 | BN145: 0.4947510057 | BO145: 137 | CG145: 137 | CH145: 5328.976569 | CI145: 0.1543042787 | CO145: 0 | CP145: 0 | CQ145: 0 | CR145: 0 | CS145: 0 | CT145: 0 | CU145: 0 | CV145: 0 | CW145: 1 | CX145: 1
BA146: 138 | BB146: 18314.68452 | BC146: 0.4495836707 | BD146: 21482.39174 | BE146: 0.7961809632 | BJ146: 138 | BK146: 18314.68452 | BL146: 0.4495836707 | BM146: 21482.39174 | BN146: 0.7961809632 | BO146: 138 | CG146: 138 | CH146: 3167.707226 | CI146: 0.3465972925 | CO146: 0 | CP146: 0 | CQ146: 0 | CR146: 0 | CS146: 0 | CT146: 1 | CU146: 1 | CV146: 1 | CW146: 1 | CX146: 1
BA147: 139 | BB147: 15671.17363 | BC147: 0.5349953091 | BD147: 21002.41019 | BE147: 0.7353845913 | BJ147: 139 | BK147: 15671.17363 | BL147: 0.5349953091 | BM147: 21002.41019 | BN147: 0.7353845913 | BO147: 139 | CG147: 139 | CH147: 5331.236556 | CI147: 0.2003892822 | CO147: 0 | CP147: 0 | CQ147: 0 | CR147: 0 | CS147: 0 | CT147: 1 | CU147: 1 | CV147: 1 | CW147: 1 | CX147: 1
BA148: 140 | BB148: 16420.67469 | BC148: 0.8985330965 | BD148: 21272.65036 | BE148: 1.030993686 | BJ148: 140 | BK148: 16420.67469 | BL148: 0.8985330965 | BM148: 21272.65036 | BN148: 1.030993686 | BO148: 140 | CG148: 140 | CH148: 4851.975667 | CI148: 0.1324605892 | CO148: 0 | CP148: 0 | CQ148: 0 | CR148: 0 | CS148: 0 | CT148: 0 | CU148: 0 | CV148: 1 | CW148: 1 | CX148: 1
BA149: 141 | BB149: 13386.28963 | BC149: 1.180540297 | BD149: 20924.90942 | BE149: 0.6917016958 | BJ149: 141 | BK149: 13386.28963 | BL149: 1.180540297 | BM149: 20924.90942 | BN149: 0.6917016958 | BO149: 141 | CG149: 141 | CH149: 7538.619794 | CI149: -0.4888386009 | CO149: =IF(AND((CO$8*$BL149-$BK149) <= ($BN149*CO$8-$BM149), ($BN149*CO$8-$BM149) >= 0),1,0) -> 0 | CP149: 0 | CQ149: 0 | CR149: 0 | CS149: 0 | CT149: 0 | CU149: 0 | CV149: 0 | CW149: 0 | CX149: 0
BA150: 142 | BB150: 16810.23197 | BC150: 0.6847931504 | BD150: 21283.48807 | BE150: 1.064256422 | BJ150: 142 | BK150: 16810.23197 | BL150: 0.6847931504 | BM150: 21283.48807 | BN150: 1.064256422 | BO150: 142 | CG150: 142 | CH150: 4473.256101 | CI150: 0.3794632719 | CO150: 0 | CP150: 0 | CQ150: 0 | CR150: 1 | CS150: 1 | CT150: 1 | CU150: 1 | CV150: 1 | CW150: 1 | CX150: 1
BA151: 143 | BB151: 15390.71443 | BC151: 1.555934383 | BD151: 21691.45159 | BE151: 1.190960636 | BJ151: 143 | BK151: 15390.71443 | BL151: 1.555934383 | BM151: 21691.45159 | BN151: 1.190960636 | BO151: 143 | CG151: 143 | CH151: 6300.737159 | CI151: -0.3649737474 | CO151: 0 | CP151: 0 | CQ151: 0 | CR151: 0 | CS151: 0 | CT151: 0 | CU151: 0 | CV151: 0 | CW151: 0 | CX151: 0
BA152: 144 | BB152: 16867.08408 | BC152: 0.8628066853 | BD152: 20706.59559 | BE152: 1.15554154 | BJ152: 144 | BK152: 16867.08408 | BL152: 0.8628066853 | BM152: 20706.59559 | BN152: 1.15554154 | BO152: 144 | CG152: 144 | CH152: 3839.511515 | CI152: 0.292734855 | CO152: 0 | CP152: 0 | CQ152: 0 | CR152: 1 | CS152: 1 | CT152: 1 | CU152: 1 | CV152: 1 | CW152: 1 | CX152: 1
BA153: 145 | BB153: 18018.85634 | BC153: 0.7970090894 | BD153: 21279.64215 | BE153: 1.093581411 | BJ153: 145 | BK153: 18018.85634 | BL153: 0.7970090894 | BM153: 21279.64215 | BN153: 1.093581411 | BO153: 145 | CG153: 145 | CH153: 3260.785808 | CI153: 0.2965723217 | CO153: 0 | CP153: 0 | CQ153: =IF(AND((CQ$8*$BL153-$BK153) <= ($BN153*CQ$8-$BM153), ($BN153*CQ$8-$BM153) >= 0),1,0) -> 0 | CR153: 1 | CS153: 1 | CT153: 1 | CU153: =IF(AND((CU$8*$BL153-$BK153) <= ($BN153*CU$8-$BM153), ($BN153*CU$8-$BM153) >= 0),1,0) -> 1 | CV153: 1 | CW153: 1 | CX153: 1
BA154: 146 | BB154: 15735.3944 | BC154: 0.2310372552 | BD154: 20848.3205 | BE154: 0.2272790815 | BJ154: 146 | BK154: 15735.3944 | BL154: 0.2310372552 | BM154: 20848.3205 | BN154: 0.2272790815 | BO154: 146 | CG154: 146 | CH154: 5112.926094 | CI154: -0.003758173744 | CO154: 0 | CP154: 0 | CQ154: 0 | CR154: 0 | CS154: 0 | CT154: 0 | CU154: 0 | CV154: 0 | CW154: 0 | CX154: 0
BA155: 147 | BB155: 16575.89782 | BC155: 0.8254364337 | BD155: 21350.77063 | BE155: 1.114681973 | BJ155: 147 | BK155: 16575.89782 | BL155: 0.8254364337 | BM155: 21350.77063 | BN155: 1.114681973 | BO155: 147 | CG155: 147 | CH155: 4774.872814 | CI155: 0.289245539 | CO155: 0 | CP155: 0 | CQ155: 0 | CR155: 1 | CS155: 1 | CT155: 1 | CU155: 1 | CV155: 1 | CW155: 1 | CX155: 1
BA156: 148 | BB156: 16068.55877 | BC156: 1.784207327 | BD156: 21789.5657 | BE156: 1.839575623 | BJ156: 148 | BK156: 16068.55877 | BL156: 1.784207327 | BM156: 21789.5657 | BN156: 1.839575623 | BO156: 148 | CG156: 148 | CH156: 5721.006927 | CI156: 0.05536829621 | CO156: 0 | CP156: 0 | CQ156: 0 | CR156: 0 | CS156: 0 | CT156: 0 | CU156: 0 | CV156: 0 | CW156: 0 | CX156: 0
BA157: 149 | BB157: 15802.81914 | BC157: 0.9222424297 | BD157: 20692.3644 | BE157: 0.8847634712 | BJ157: 149 | BK157: 15802.81914 | BL157: 0.9222424297 | BM157: 20692.3644 | BN157: 0.8847634712 | BO157: 149 | CG157: 149 | CH157: 4889.545256 | CI157: -0.03747895853 | CO157: 0 | CP157: 0 | CQ157: 0 | CR157: 0 | CS157: 0 | CT157: 0 | CU157: 0 | CV157: 0 | CW157: 0 | CX157: 0
BA158: 150 | BB158: 16967.89001 | BC158: 0.06476652134 | BD158: 20781.87638 | BE158: 0.1281805979 | BJ158: 150 | BK158: 16967.89001 | BL158: 0.06476652134 | BM158: 20781.87638 | BN158: 0.1281805979 | BO158: 150 | CG158: 150 | CH158: 3813.986373 | CI158: 0.06341407657 | CO158: 0 | CP158: 0 | CQ158: 0 | CR158: 0 | CS158: 0 | CT158: 0 | CU158: 0 | CV158: 0 | CW158: 0 | CX158: 0
BA159: 151 | BB159: 14083.73714 | BC159: 1.525560421 | BD159: 22032.3811 | BE159: 0.8714065389 | BJ159: 151 | BK159: 14083.73714 | BL159: 1.525560421 | BM159: 22032.3811 | BN159: 0.8714065389 | BO159: 151 | CG159: 151 | CH159: 7948.643957 | CI159: -0.654153882 | CO159: 0 | CP159: 0 | CQ159: 0 | CR159: 0 | CS159: 0 | CT159: 0 | CU159: 0 | CV159: 0 | CW159: 0 | CX159: 0
BA160: 152 | BB160: 16342.70754 | BC160: 1.403826703 | BD160: 21011.89256 | BE160: 1.757604232 | BJ160: 152 | BK160: 16342.70754 | BL160: 1.403826703 | BM160: 21011.89256 | BN160: 1.757604232 | BO160: 152 | CG160: 152 | CH160: 4669.185017 | CI160: 0.3537775289 | CO160: 0 | CP160: 0 | CQ160: 1 | CR160: 1 | CS160: 1 | CT160: 1 | CU160: 1 | CV160: 1 | CW160: 1 | CX160: 1
BA161: 153 | BB161: 13145.10236 | BC161: 1.569799611 | BD161: 20095.29307 | BE161: 1.25296046 | BJ161: 153 | BK161: 13145.10236 | BL161: 1.569799611 | BM161: 20095.29307 | BN161: 1.25296046 | BO161: 153 | CG161: 153 | CH161: 6950.190711 | CI161: -0.3168391509 | CO161: 0 | CP161: 0 | CQ161: 0 | CR161: 0 | CS161: 0 | CT161: 0 | CU161: 0 | CV161: 0 | CW161: 0 | CX161: 0
BA162: 154 | BB162: 16213.70662 | BC162: 0.7081836878 | BD162: 21204.37665 | BE162: 0.6133567932 | BJ162: 154 | BK162: 16213.70662 | BL162: 0.7081836878 | BM162: 21204.37665 | BN162: 0.6133567932 | BO162: 154 | CG162: 154 | CH162: 4990.670036 | CI162: -0.09482689464 | CO162: 0 | CP162: 0 | CQ162: 0 | CR162: 0 | CS162: 0 | CT162: 0 | CU162: 0 | CV162: 0 | CW162: 0 | CX162: 0
BA163: 155 | BB163: 15735.67565 | BC163: -0.4253089242 | BD163: 20744.06772 | BE163: -0.3510848241 | BJ163: 155 | BK163: 15735.67565 | BL163: -0.4253089242 | BM163: 20744.06772 | BN163: -0.3510848241 | BO163: 155 | CG163: 155 | CH163: 5008.392064 | CI163: 0.07422410012 | CO163: 0 | CP163: 0 | CQ163: 0 | CR163: 0 | CS163: 0 | CT163: 0 | CU163: 0 | CV163: 0 | CW163: 0 | CX163: 0
BA164: 156 | BB164: 16657.81382 | BC164: 0.8065118667 | BD164: 20917.54739 | BE164: 0.8442902542 | BJ164: 156 | BK164: 16657.81382 | BL164: 0.8065118667 | BM164: 20917.54739 | BN164: 0.8442902542 | BO164: 156 | CG164: 156 | CH164: 4259.733568 | CI164: 0.03777838751 | CO164: 0 | CP164: 0 | CQ164: 0 | CR164: 0 | CS164: 0 | CT164: 0 | CU164: 0 | CV164: 0 | CW164: 0 | CX164: 0
BA165: 157 | BB165: 10554.90668 | BC165: 2.024101228 | BD165: 21063.53032 | BE165: 0.8038777346 | BJ165: 157 | BK165: 10554.90668 | BL165: 2.024101228 | BM165: 21063.53032 | BN165: 0.8038777346 | BO165: 157 | CG165: 157 | CH165: 10508.62364 | CI165: -1.220223493 | CO165: 0 | CP165: 0 | CQ165: 0 | CR165: 0 | CS165: 0 | CT165: 0 | CU165: 0 | CV165: 0 | CW165: 0 | CX165: 0
BA166: 158 | BB166: 16459.15515 | BC166: 0.2307649682 | BD166: 21399.92885 | BE166: 0.3893834273 | BJ166: 158 | BK166: 16459.15515 | BL166: 0.2307649682 | BM166: 21399.92885 | BN166: 0.3893834273 | BO166: 158 | CG166: 158 | CH166: 4940.773704 | CI166: 0.1586184591 | CO166: 0 | CP166: 0 | CQ166: 0 | CR166: 0 | CS166: 0 | CT166: 0 | CU166: 0 | CV166: 0 | CW166: 0 | CX166: 0
BA167: 159 | BB167: 13438.60203 | BC167: 0.937588749 | BD167: 21354.19927 | BE167: 0.9809471842 | BJ167: 159 | BK167: 13438.60203 | BL167: 0.937588749 | BM167: 21354.19927 | BN167: 0.9809471842 | BO167: 159 | CG167: 159 | CH167: 7915.597236 | CI167: 0.04335843523 | CO167: 0 | CP167: 0 | CQ167: 0 | CR167: 0 | CS167: 0 | CT167: 0 | CU167: 0 | CV167: 0 | CW167: 0 | CX167: 0
BA168: 160 | BB168: 17321.68744 | BC168: 0.9591042956 | BD168: 20949.70302 | BE168: 1.27429203 | BJ168: 160 | BK168: 17321.68744 | BL168: 0.9591042956 | BM168: 20949.70302 | BN168: 1.27429203 | BO168: 160 | CG168: 160 | CH168: 3628.015587 | CI168: 0.3151877348 | CO168: 0 | CP168: 0 | CQ168: 0 | CR168: 1 | CS168: 1 | CT168: 1 | CU168: 1 | CV168: 1 | CW168: 1 | CX168: 1
BA169: 161 | BB169: 18589.54334 | BC169: 0.6697620355 | BD169: 20947.26276 | BE169: 0.9344824974 | BJ169: 161 | BK169: 18589.54334 | BL169: 0.6697620355 | BM169: 20947.26276 | BN169: 0.9344824974 | BO169: 161 | CG169: 161 | CH169: 2357.719417 | CI169: 0.2647204618 | CO169: =IF(AND((CO$8*$BL169-$BK169) <= ($BN169*CO$8-$BM169), ($BN169*CO$8-$BM169) >= 0),1,0) -> 0 | CP169: 0 | CQ169: 0 | CR169: 0 | CS169: 1 | CT169: 1 | CU169: 1 | CV169: 1 | CW169: 1 | CX169: 1
BA170: 162 | BB170: 16999.36161 | BC170: 1.302882828 | BD170: 21254.15399 | BE170: 1.303828189 | BJ170: 162 | BK170: 16999.36161 | BL170: 1.302882828 | BM170: 21254.15399 | BN170: 1.303828189 | BO170: 162 | CG170: 162 | CH170: 4254.792383 | CI170: 0.0009453607218 | CO170: 0 | CP170: 0 | CQ170: 0 | CR170: 0 | CS170: 0 | CT170: 0 | CU170: 0 | CV170: 0 | CW170: 0 | CX170: 0
BA171: 163 | BB171: 17595.38301 | BC171: 0.008238043856 | BD171: 21247.83064 | BE171: 0.4544316278 | BJ171: 163 | BK171: 17595.38301 | BL171: 0.008238043856 | BM171: 21247.83064 | BN171: 0.4544316278 | BO171: 163 | CG171: 163 | CH171: 3652.44763 | CI171: 0.4461935839 | CO171: 0 | CP171: 0 | CQ171: 0 | CR171: 0 | CS171: 0 | CT171: 0 | CU171: 0 | CV171: 0 | CW171: 0 | CX171: 1
BA172: 164 | BB172: 15393.80287 | BC172: 0.8930963155 | BD172: 21357.59515 | BE172: 1.11591488 | BJ172: 164 | BK172: 15393.80287 | BL172: 0.8930963155 | BM172: 21357.59515 | BN172: 1.11591488 | BO172: 164 | CG172: 164 | CH172: 5963.792277 | CI172: 0.2228185647 | CO172: 0 | CP172: 0 | CQ172: 0 | CR172: 0 | CS172: 0 | CT172: 1 | CU172: 1 | CV172: 1 | CW172: 1 | CX172: 1
BA173: 165 | BB173: 15705.38209 | BC173: 1.750285221 | BD173: 20953.7251 | BE173: 1.635833613 | BJ173: 165 | BK173: 15705.38209 | BL173: 1.750285221 | BM173: 20953.7251 | BN173: 1.635833613 | BO173: 165 | CG173: 165 | CH173: 5248.343016 | CI173: -0.1144516079 | CO173: 0 | CP173: 0 | CQ173: 0 | CR173: 0 | CS173: 0 | CT173: 0 | CU173: 0 | CV173: 0 | CW173: 0 | CX173: 0
BA174: 166 | BB174: 11156.98203 | BC174: 1.881838337 | BD174: 20486.94814 | BE174: 0.728711272 | BJ174: 166 | BK174: 11156.98203 | BL174: 1.881838337 | BM174: 20486.94814 | BN174: 0.728711272 | BO174: 166 | CG174: 166 | CH174: 9329.96611 | CI174: -1.153127065 | CO174: 0 | CP174: 0 | CQ174: 0 | CR174: 0 | CS174: 0 | CT174: 0 | CU174: 0 | CV174: 0 | CW174: 0 | CX174: 0
BA175: 167 | BB175: 15522.13956 | BC175: 1.507942251 | BD175: 20836.1125 | BE175: 1.44701956 | BJ175: 167 | BK175: 15522.13956 | BL175: 1.507942251 | BM175: 20836.1125 | BN175: 1.44701956 | BO175: 167 | CG175: 167 | CH175: 5313.972937 | CI175: -0.06092269146 | CO175: 0 | CP175: 0 | CQ175: 0 | CR175: 0 | CS175: 0 | CT175: 0 | CU175: 0 | CV175: 0 | CW175: 0 | CX175: 0
BA176: 168 | BB176: 15724.69369 | BC176: 0.6615547611 | BD176: 21514.61021 | BE176: 0.5421649861 | BJ176: 168 | BK176: 15724.69369 | BL176: 0.6615547611 | BM176: 21514.61021 | BN176: 0.5421649861 | BO176: 168 | CG176: 168 | CH176: 5789.916519 | CI176: -0.1193897749 | CO176: 0 | CP176: 0 | CQ176: 0 | CR176: 0 | CS176: 0 | CT176: 0 | CU176: 0 | CV176: 0 | CW176: 0 | CX176: 0
BA177: 169 | BB177: 16607.9104 | BC177: 0.7028329699 | BD177: 19730.58572 | BE177: 0.8106922262 | BJ177: 169 | BK177: 16607.9104 | BL177: 0.7028329699 | BM177: 19730.58572 | BN177: 0.8106922262 | BO177: 169 | CG177: 169 | CH177: 3122.675316 | CI177: 0.1078592563 | CO177: 0 | CP177: 0 | CQ177: 0 | CR177: 0 | CS177: 0 | CT177: 1 | CU177: 1 | CV177: 1 | CW177: 1 | CX177: 1
BA178: 170 | BB178: 17452.29518 | BC178: 0.6957091932 | BD178: 21852.32098 | BE178: 1.32257216 | BJ178: 170 | BK178: 17452.29518 | BL178: 0.6957091932 | BM178: 21852.32098 | BN178: 1.32257216 | BO178: 170 | CG178: 170 | CH178: 4400.025799 | CI178: 0.626862967 | CO178: 0 | CP178: 0 | CQ178: 0 | CR178: 1 | CS178: 1 | CT178: 1 | CU178: 1 | CV178: 1 | CW178: 1 | CX178: 1
BA179: 171 | BB179: 16434.40753 | BC179: 1.125921687 | BD179: 20927.57067 | BE179: 1.045844239 | BJ179: 171 | BK179: 16434.40753 | BL179: 1.125921687 | BM179: 20927.57067 | BN179: 1.045844239 | BO179: 171 | CG179: 171 | CH179: 4493.163132 | CI179: -0.08007744747 | CO179: 0 | CP179: 0 | CQ179: 0 | CR179: 0 | CS179: 0 | CT179: 0 | CU179: 0 | CV179: 0 | CW179: 0 | CX179: 0
BA180: 172 | BB180: 13739.40264 | BC180: 1.535152066 | BD180: 20603.87255 | BE180: 1.219124214 | BJ180: 172 | BK180: 13739.40264 | BL180: 1.535152066 | BM180: 20603.87255 | BN180: 1.219124214 | BO180: 172 | CG180: 172 | CH180: 6864.46991 | CI180: -0.3160278529 | CO180: 0 | CP180: 0 | CQ180: 0 | CR180: 0 | CS180: 0 | CT180: 0 | CU180: 0 | CV180: 0 | CW180: 0 | CX180: 0
BA181: 173 | BB181: 17889.18486 | BC181: 0.9624912663 | BD181: 20550.21027 | BE181: 1.190352804 | BJ181: 173 | BK181: 17889.18486 | BL181: 0.9624912663 | BM181: 20550.21027 | BN181: 1.190352804 | BO181: 173 | CG181: 173 | CH181: 2661.025415 | CI181: 0.2278615374 | CO181: 0 | CP181: 0 | CQ181: 0 | CR181: 1 | CS181: 1 | CT181: 1 | CU181: 1 | CV181: 1 | CW181: 1 | CX181: 1
BA182: 174 | BB182: 14688.37011 | BC182: 1.70557967 | BD182: 20037.85698 | BE182: 1.545733465 | BJ182: 174 | BK182: 14688.37011 | BL182: 1.70557967 | BM182: 20037.85698 | BN182: 1.545733465 | BO182: 174 | CG182: 174 | CH182: 5349.486869 | CI182: -0.1598462045 | CO182: 0 | CP182: 0 | CQ182: 0 | CR182: 0 | CS182: 0 | CT182: 0 | CU182: 0 | CV182: 0 | CW182: 0 | CX182: 0
BA183: 175 | BB183: 16283.20962 | BC183: 2.081522095 | BD183: 21092.33649 | BE183: 1.784398377 | BJ183: 175 | BK183: 16283.20962 | BL183: 2.081522095 | BM183: 21092.33649 | BN183: 1.784398377 | BO183: 175 | CG183: 175 | CH183: 4809.126877 | CI183: -0.2971237175 | CO183: 0 | CP183: 0 | CQ183: 0 | CR183: 0 | CS183: 0 | CT183: 0 | CU183: 0 | CV183: 0 | CW183: 0 | CX183: 0
BA184: 176 | BB184: 15996.51401 | BC184: 1.076041331 | BD184: 20443.66606 | BE184: 0.8945401869 | BJ184: 176 | BK184: 15996.51401 | BL184: 1.076041331 | BM184: 20443.66606 | BN184: 0.8945401869 | BO184: 176 | CG184: 176 | CH184: 4447.152046 | CI184: -0.1815011439 | CO184: 0 | CP184: 0 | CQ184: 0 | CR184: 0 | CS184: 0 | CT184: 0 | CU184: 0 | CV184: 0 | CW184: 0 | CX184: 0
BA185: 177 | BB185: 15572.79138 | BC185: 0.6467665224 | BD185: 20876.73003 | BE185: 0.6635636336 | BJ185: 177 | BK185: 15572.79138 | BL185: 0.6467665224 | BM185: 20876.73003 | BN185: 0.6635636336 | BO185: 177 | CG185: 177 | CH185: 5303.938649 | CI185: 0.01679711115 | CO185: 0 | CP185: 0 | CQ185: 0 | CR185: 0 | CS185: 0 | CT185: 0 | CU185: 0 | CV185: 0 | CW185: 0 | CX185: 0
BA186: 178 | BB186: 17027.4165 | BC186: 0.7377905035 | BD186: 21322.33192 | BE186: 1.183413025 | BJ186: 178 | BK186: 17027.4165 | BL186: 0.7377905035 | BM186: 21322.33192 | BN186: 1.183413025 | BO186: 178 | CG186: 178 | CH186: 4294.915427 | CI186: 0.4456225215 | CO186: 0 | CP186: 0 | CQ186: 0 | CR186: 1 | CS186: 1 | CT186: 1 | CU186: 1 | CV186: 1 | CW186: 1 | CX186: 1
BA187: 179 | BB187: 14991.80282 | BC187: 0.6391229445 | BD187: 21177.01322 | BE187: 0.2913588326 | BJ187: 179 | BK187: 14991.80282 | BL187: 0.6391229445 | BM187: 21177.01322 | BN187: 0.2913588326 | BO187: 179 | CG187: 179 | CH187: 6185.210393 | CI187: -0.347764112 | CO187: 0 | CP187: 0 | CQ187: 0 | CR187: 0 | CS187: 0 | CT187: 0 | CU187: 0 | CV187: 0 | CW187: 0 | CX187: 0
BA188: 180 | BB188: 17262.44595 | BC188: 1.23665532 | BD188: 20972.87678 | BE188: 1.586018066 | BJ188: 180 | BK188: 17262.44595 | BL188: 1.23665532 | BM188: 20972.87678 | BN188: 1.586018066 | BO188: 180 | CG188: 180 | CH188: 3710.430831 | CI188: 0.3493627462 | CO188: 0 | CP188: 0 | CQ188: 1 | CR188: 1 | CS188: 1 | CT188: 1 | CU188: 1 | CV188: 1 | CW188: 1 | CX188: 1
BA189: 181 | BB189: 14536.26727 | BC189: 1.149107368 | BD189: 20789.30334 | BE189: 0.9678123879 | BJ189: 181 | BK189: 14536.26727 | BL189: 1.149107368 | BM189: 20789.30334 | BN189: 0.9678123879 | BO189: 181 | CG189: 181 | CH189: 6253.036068 | CI189: -0.1812949799 | CO189: =IF(AND((CO$8*$BL189-$BK189) <= ($BN189*CO$8-$BM189), ($BN189*CO$8-$BM189) >= 0),1,0) -> 0 | CP189: 0 | CQ189: 0 | CR189: 0 | CS189: 0 | CT189: 0 | CU189: 0 | CV189: 0 | CW189: 0 | CX189: 0
BA190: 182 | BB190: 18330.5097 | BC190: 0.7677635606 | BD190: 21925.36503 | BE190: 1.108541778 | BJ190: 182 | BK190: 18330.5097 | BL190: 0.7677635606 | BM190: 21925.36503 | BN190: 1.108541778 | BO190: 182 | CG190: 182 | CH190: 3594.855335 | CI190: 0.3407782178 | CO190: 0 | CP190: 0 | CQ190: 0 | CR190: 1 | CS190: 1 | CT190: 1 | CU190: 1 | CV190: 1 | CW190: 1 | CX190: 1
BA191: 183 | BB191: 13244.9072 | BC191: 2.107320435 | BD191: 19982.34197 | BE191: 1.955775738 | BJ191: 183 | BK191: 13244.9072 | BL191: 2.107320435 | BM191: 19982.34197 | BN191: 1.955775738 | BO191: 183 | CG191: 183 | CH191: 6737.434769 | CI191: -0.1515446975 | CO191: 0 | CP191: 0 | CQ191: 0 | CR191: 0 | CS191: 0 | CT191: 0 | CU191: 0 | CV191: 0 | CW191: 0 | CX191: 0
BA192: 184 | BB192: 18420.57434 | BC192: 0.05744854596 | BD192: 21498.05633 | BE192: 0.7120150729 | BJ192: 184 | BK192: 18420.57434 | BL192: 0.05744854596 | BM192: 21498.05633 | BN192: 0.7120150729 | BO192: 184 | CG192: 184 | CH192: 3077.481993 | CI192: 0.654566527 | CO192: 0 | CP192: 0 | CQ192: 0 | CR192: 0 | CS192: 0 | CT192: 0 | CU192: 1 | CV192: 1 | CW192: 1 | CX192: 1
BA193: 185 | BB193: 14886.6438 | BC193: 0.7099626077 | BD193: 21979.07772 | BE193: 0.3909135726 | BJ193: 185 | BK193: 14886.6438 | BL193: 0.7099626077 | BM193: 21979.07772 | BN193: 0.3909135726 | BO193: 185 | CG193: 185 | CH193: 7092.433928 | CI193: -0.319049035 | CO193: 0 | CP193: 0 | CQ193: 0 | CR193: 0 | CS193: 0 | CT193: 0 | CU193: 0 | CV193: 0 | CW193: 0 | CX193: 0
BA194: 186 | BB194: 17223.87238 | BC194: 0.3022349965 | BD194: 21451.5455 | BE194: 0.7114601196 | BJ194: 186 | BK194: 17223.87238 | BL194: 0.3022349965 | BM194: 21451.5455 | BN194: 0.7114601196 | BO194: 186 | CG194: 186 | CH194: 4227.673114 | CI194: 0.4092251231 | CO194: 0 | CP194: 0 | CQ194: 0 | CR194: 0 | CS194: 0 | CT194: 0 | CU194: 1 | CV194: 1 | CW194: 1 | CX194: 1
BA195: 187 | BB195: 10976.27651 | BC195: 1.499692721 | BD195: 19534.11304 | BE195: 0.2107937526 | BJ195: 187 | BK195: 10976.27651 | BL195: 1.499692721 | BM195: 19534.11304 | BN195: 0.2107937526 | BO195: 187 | CG195: 187 | CH195: 8557.836533 | CI195: -1.288898968 | CO195: 0 | CP195: 0 | CQ195: 0 | CR195: 0 | CS195: 0 | CT195: 0 | CU195: 0 | CV195: 0 | CW195: 0 | CX195: 0
BA196: 188 | BB196: 14670.67584 | BC196: 1.053904664 | BD196: 21418.75588 | BE196: 0.8991649433 | BJ196: 188 | BK196: 14670.67584 | BL196: 1.053904664 | BM196: 21418.75588 | BN196: 0.8991649433 | BO196: 188 | CG196: 188 | CH196: 6748.080033 | CI196: -0.1547397206 | CO196: 0 | CP196: 0 | CQ196: 0 | CR196: 0 | CS196: 0 | CT196: 0 | CU196: 0 | CV196: 0 | CW196: 0 | CX196: 0
BA197: 189 | BB197: 15198.20801 | BC197: 0.5178375749 | BD197: 21312.47201 | BE197: 0.4523492543 | BJ197: 189 | BK197: 15198.20801 | BL197: 0.5178375749 | BM197: 21312.47201 | BN197: 0.4523492543 | BO197: 189 | CG197: 189 | CH197: 6114.264002 | CI197: -0.06548832064 | CO197: 0 | CP197: 0 | CQ197: 0 | CR197: 0 | CS197: 0 | CT197: 0 | CU197: 0 | CV197: 0 | CW197: 0 | CX197: 0
BA198: 190 | BB198: 19982.77749 | BC198: 0.4803537311 | BD198: 21644.18073 | BE198: 1.275610337 | BJ198: 190 | BK198: 19982.77749 | BL198: 0.4803537311 | BM198: 21644.18073 | BN198: 1.275610337 | BO198: 190 | CG198: 190 | CH198: 1661.403235 | CI198: 0.7952566057 | CO198: 0 | CP198: 0 | CQ198: 0 | CR198: 1 | CS198: 1 | CT198: 1 | CU198: 1 | CV198: 1 | CW198: 1 | CX198: 1
BA199: 191 | BB199: 15117.98121 | BC199: 0.4999810237 | BD199: 20252.79414 | BE199: 0.6398338531 | BJ199: 191 | BK199: 15117.98121 | BL199: 0.4999810237 | BM199: 20252.79414 | BN199: 0.6398338531 | BO199: 191 | CG199: 191 | CH199: 5134.812933 | CI199: 0.1398528294 | CO199: 0 | CP199: 0 | CQ199: 0 | CR199: 0 | CS199: 0 | CT199: 0 | CU199: 0 | CV199: 1 | CW199: 1 | CX199: 1
BA200: 192 | BB200: 18135.55125 | BC200: 0.5981540174 | BD200: 21019.67966 | BE200: 0.7259522653 | BJ200: 192 | BK200: 18135.55125 | BL200: 0.5981540174 | BM200: 21019.67966 | BN200: 0.7259522653 | BO200: 192 | CG200: 192 | CH200: 2884.128411 | CI200: 0.1277982479 | CO200: 0 | CP200: 0 | CQ200: 0 | CR200: 0 | CS200: 0 | CT200: 1 | CU200: 1 | CV200: 1 | CW200: 1 | CX200: 1
... 362 more rows

Sheet Parameters
A1: Model Control | E1: opt_modeltype
A2: opt_modeltype | B2: Model Type | C2: Deterministic | E2: Deterministic
E3: Stochastic
A6: Transition Parameters
A7: Parameter | B7: Description | C7: Refers to | D7: Value Used | E7: Deterministic | F7: Stochastic | G7: Random | H7: Dist | I7: Param1 | K7: Param2 | P7: Mean | Q7: SD
A8: p_active | B8: Probability of active disease from silent disease | C8: Treatment A | D8: =IF(opt_modeltype=$E$2,E8,F8) -> 0.088 | E8: 0.088 | F8: =_xlfn.BETA.INV(G8,J8,L8) -> 0.06453859217 | G8: =RAND() -> 0.1776635144 | H8: beta | I8: α | J8: 11 | K8: b | L8: 114 | P8: =J8/(J8+L8) -> 0.088 | Q8: =(J8*L8/((J8+L8)^2*(J8+L8+1)))^0.5 -> 0.02523791554
C9: Treatment B | D9: 0.09267431598 | E9: 0.09267431598 | F9: 0.09052689255 | G9: 0.4117323189 | H9: beta | I9: α | J9: 105 | K9: b | L9: 1028 | P9: 0.09267431598 | Q9: 0.008611023406
A10: p_success | B10: Probability of silent disease from active disease | C10: Treatment A | D10: 0.1846153846 | E10: 0.1846153846 | F10: 0.2296314167 | G10: 0.8284074791 | H10: beta | I10: α | J10: 12 | K10: b | L10: 53 | P10: 0.1846153846 | Q10: 0.04775768134
C11: Treatment B | D11: 0.2119047619 | E11: 0.2119047619 | F11: 0.2540391439 | G11: 0.9979893968 | H11: beta | I11: α | J11: 178 | K11: b | L11: 662 | P11: 0.2119047619 | Q11: 0.01409164559
A12: p_compl_sil | B12: Probability of complications from silent disease | C12: Treatment A | D12: 0.008 | E12: 0.008 | F12: 0.007530288398 | G12: 0.6083118284 | H12: beta | I12: α | J12: 1 | K12: b | L12: 124 | P12: 0.008 | Q12: 0.007936253964
C13: Treatment B | D13: 0.01412180053 | E13: 0.01412180053 | F13: 0.01073369862 | G13: 0.1655293669 | H13: beta | I13: α | J13: 16 | K13: b | L13: 1117 | P13: 0.01412180053 | Q13: 0.003503887395
A14: p_compl_act | B14: Probability of complications from active disease | C14: Treatment A | D14: 0.1230769231 | E14: 0.1230769231 | F14: 0.1426019669 | G14: 0.7094516263 | H14: beta | I14: α | J14: 8 | K14: b | L14: 57 | P14: 0.1230769231 | Q14: 0.04043869173
C15: Treatment B | D15: 0.09761904762 | E15: 0.09761904762 | F15: 0.09366210171 | G15: 0.3595106088 | H15: beta | I15: α | J15: 82 | K15: b | L15: 758 | P15: 0.09761904762 | Q15: 0.01023444379
A16: p_dead_sil | B16: Probability of death from chronic, silent disease | C16: Treatment A | D16: 0 | E16: 0 | F16: 0 | H16: fixed (no data)
C17: Treatment B | D17: 0.001765225066 | E17: 0.001765225066 | F17: 0.001430430706 | G17: 0.4814062757 | H17: beta | I17: α | J17: 2 | K17: b | L17: 1131 | P17: 0.001765225066 | Q17: 0.00124655046
A18: p_dead_act | B18: Probability of death from chronic, active disease | C18: Treatment A | D18: 0.001150747986 | E18: 0.001150747986 | F18: 0.004929524112 | G18: 0.2711371614 | H18: beta | I18: α | J18: 1 | K18: b | L18: 64 | P18: 0.01538461538 | Q18: 0.01514972197
C19: Treatment B | D19: 0.00119047619 | E19: 0.00119047619 | F19: 0.0001722343704 | G19: 0.1345598716 | H19: beta | I19: α | J19: 1 | K19: b | L19: 839 | P19: 0.00119047619 | Q19: 0.0011890598
A20: p_dead_cmp | B20: Probability of death from complications state | C20: Common | D20: 0.003494060098 | E20: 0.003494060098 | F20: 0.002971254297 | G20: 0.4197388773 | H20: beta | I20: α | J20: 5 | K20: b | L20: 1426 | P20: 0.003494060098 | Q20: =(J20*L20/((J20+L20)^2*(J20+L20+1)))^0.5 -> 0.001559314158
A22: Cost Parameters | N22: Data informing | P22: Check
A23: Parameter | B23: Description | C23: Refers to | D23: Value Used | E23: Deterministic | F23: Stochastic | G23: Random | H23: Dist | I23: Param1 | K23: Param2 | N23: Mean | O23: SD | P23: Mean | Q23: SD | S23: Mean | T23: Variance | U23: Param1 | V23: Param2
A24: Chronic, silent disease | B24: Health state specific costs | C24: Common | D24: =IF(opt_modeltype=$E$2,E24,F24) -> 23.51960197 | E24: 23.51960197 | F24: =_xlfn.LOGNORM.INV(G24,J24,L24) -> 24.64909693 | G24: =RAND() -> 0.1864761087 | H24: lognormal | I24: μ | J24: =LN(N24)-L24^2/2 -> 3.329821832 | K24: σ | L24: =SQRT(LN(1+(O24/N24)^2)) -> 0.1403901221 | N24: 28.21 | O24: 3.98 | P24: =EXP(J24+L24^2/2) -> 28.21 | Q24: =SQRT((EXP(L24^2)-1)*P24^2) -> 3.98
A25: Chronic, active disease | B25: Health state specific costs | C25: Common | D25: =IF(opt_modeltype=$E$2,E25,F25) -> 84.4295517 | E25: 84.4295517 | F25: =_xlfn.LOGNORM.INV(G25,J25,L25) -> 74.62433459 | G25: 0.3674246445 | H25: lognormal | I25: μ | J25: =LN(N25)-L25^2/2 -> 4.399884248 | K25: σ | L25: =SQRT(LN(1+(O25/N25)^2)) -> 0.2581111139 | N25: 84.2 | O25: 22.1 | P25: =EXP(J25+L25^2/2) -> 84.2 | Q25: =SQRT((EXP(L25^2)-1)*P25^2) -> 22.1
A26: Complications | B26: Health state specific costs | C26: Common | D26: =IF(opt_modeltype=$E$2,E26,F26) -> 396.9966362 | E26: 396.9966362 | F26: =_xlfn.GAMMA.INV(G26,J26,L26) -> 456.5731206 | G26: =RAND() -> 0.9059588443 | H26: gamma | I26: α | J26: =(N26/O26)^2 -> 577.199958 | K26: b | L26: =O26^2/N26 -> 0.7496362292 | N26: 432.69 | O26: 18.01 | P26: =J26*L26 -> 432.69 | Q26: =SQRT(J26*L26^2) -> 18.01
A27: c_TxA | B27: Cost of Treament A | C27: Treatment A | D27: =IF(opt_modeltype=$E$2,E27,F27) -> 38 | E27: 38 | F27: =E27 -> 38 | H27: fixed
A28: c_TxB | B28: Cost of Treament B | C28: Treatment B | D28: =IF(opt_modeltype=$E$2,E28,F28) -> 400 | E28: 400 | F28: =E28 -> 400 | H28: fixed
A30: Utility Parameters
A31: Parameter | B31: Description | C31: Refers to | D31: Value Used | E31: Deterministic | F31: Stochastic | G31: Random | H31: Dist | I31: Param1 | K31: Param2 | M31: a + b | N31: Mean | O31: SD | P31: Mean | Q31: SD
A32: Chronic, silent disease | B32: Health state specific Utility | C32: Common | D32: =IF(opt_modeltype=$E$2,E32,F32) -> 0.819 | E32: 0.819 | F32: =_xlfn.BETA.INV(G32,J32,L32) -> 0.830421293 | G32: =RAND() -> 0.6990340974 | H32: beta | I32: α | J32: =N32*M32 -> 274.482 | K32: b | L32: =M32-J32 -> 60.66085714 | M32: =N32*(1-N32)/O32^2-1 -> 335.1428571 | N32: 0.819 | O32: 0.021 | P32: =J32/(J32+L32) -> 0.819 | Q32: =J32*L32/((J32+L32)^2*(J32+L32+1)) -> 0.000441
A33: Chronic, active disease | B33: Health state specific Utility | C33: Common | D33: =IF(opt_modeltype=$E$2,E33,F33) -> 0.653 | E33: 0.653 | F33: =_xlfn.BETA.INV(G33,J33,L33) -> 0.7365708414 | G33: =RAND() -> 0.6497837212 | H33: beta | I33: α | J33: =N33*M33 -> 4.527628234 | K33: b | L33: =M33-J33 -> 2.405952523 | M33: =N33*(1-N33)/O33^2-1 -> 6.933580757 | N33: 0.653 | O33: 0.169 | P33: =J33/(J33+L33) -> 0.653 | Q33: =J33*L33/((J33+L33)^2*(J33+L33+1)) -> 0.028561
A34: Complications | B34: Health state specific Utility | C34: Common | D34: =IF(opt_modeltype=$E$2,E34,F34) -> -0.137 | E34: -0.137 | F34: =1-F35 -> -0.2744110742
B35: DISUTILITY FOR COMPLICATIONS STATE | F35: =_xlfn.GAMMA.INV(G35,J35,L35) -> 1.274411074 | G35: =RAND() -> 0.7843396363 | H35: gamma | I35: α | J35: =(N35/O35)^2 -> 39.90027778 | K35: b | L35: =O35^2/N35 -> 0.02849604222 | M35: =N35*(1-N35)/O35^2-1 -> -5.807685185 | N35: 1.137 | O35: 0.18 | P35: =J35*L35 -> 1.137 | Q35: =SQRT(J35*L35^2) -> 0.18

Sheet Dummy for calculation purposes
E8: TxA | H8: SILENT | I8: ACTIVE | J8: COMPL | K8: DEAD | M8: TOTAL
G9: SILENT | H9: =M9-I9-J9-K9 -> 113 | I9: 11 | J9: 1 | K9: 0 | M9: 125 | V9: Mean | W9: SD | Y9: Chronic, active disease | Z9: Complications
G10: ACTIVE | H10: 12 | I10: =M10-H10-J10-K10 -> 44 | J10: 8 | K10: 1 | M10: 65 | U10: Chronic, silent disease | V10: 0.819 | W10: 0.021 | Y10: 0.403 | Z10: 0.219
G11: COMPL | H11: 0 | I11: 0 | J11: =M11-H11-I11-K11 -> 1426 | K11: 5 | M11: 1431 | U11: Chronic, active disease | V11: 0.653 | W11: 0.109 | Z11: 0.673
G12: DEAD | H12: 0 | I12: 0 | J12: 0 | K12: 1 | M12: 1 | U12: Complications | V12: -0.137 | W12: 0.18
H16: SILENT | I16: ACTIVE | J16: COMPL | K16: DEAD | U16: SILENT | V16: =W10^2 -> 0.000441 | W16: =W10*W11*Y10 -> 0.000922467 | X16: =Z10*W10*W12 -> 0.00082782
G17: SILENT | H17: =H9/$M9 -> 0.904 | I17: 0.088 | J17: 0.008 | K17: 0 | U17: ACTIVE | V17: =W16 -> 0.000922467 | W17: =W11^2 -> 0.011881 | X17: =Z11*W11*W12 -> 0.01320426
G18: ACTIVE | H18: 0.1846153846 | I18: 0.6769230769 | J18: 0.1230769231 | K18: 0.01538461538 | U18: COMPL | V18: =X16 -> 0.00082782 | W18: =X17 -> 0.01320426 | X18: =W12^2 -> 0.0324
G19: COMPL | H19: 0 | I19: 0 | J19: 0.9965059399 | K19: 0.003494060098
G20: DEAD | H20: 0 | I20: 0 | J20: 0 | K20: 1
E24: TxB | H24: SILENT | I24: ACTIVE | J24: COMPL | K24: DEAD | M24: TOTAL
G25: SILENT | H25: =M25-I25-J25-K25 -> 1011 | I25: 105 | J25: 16 | K25: 1 | M25: 1133
G26: ACTIVE | H26: 178 | I26: =M26-H26-J26-K26 -> 579 | J26: 82 | K26: 1 | M26: 840
G27: COMPL | H27: 0 | I27: 0 | J27: =M27-H27-I27-K27 -> 1422 | K27: 9 | M27: 1431 | U27: State | V27: Mean | W27: Standard deviation | X27: z
G28: DEAD | H28: 0 | I28: 0 | J28: 0 | K28: 1 | M28: 1 | U28: SILENT | V28: 0.819 | W28: 0.021 | X28: =(1-V28)/W28 -> 8.619047619
U29: ACTIVE | V29: 0.653 | W29: 0.109 | X29: =(1-V29)/W29 -> 3.183486239 | Z29: =NORMSDIST(X29) -> 0.9992724348
U30: COMPL | V30: -0.137 | W30: 0.18 | X30: 6.316666667
H32: SILENT | I32: ACTIVE | J32: COMPL | K32: DEAD
G33: SILENT | H33: =H25/$M25 -> 0.892321271 | I33: 0.09267431598 | J33: 0.01412180053 | K33: 0.0008826125331
G34: ACTIVE | H34: 0.2119047619 | I34: 0.6892857143 | J34: 0.09761904762 | K34: 0.00119047619
G35: COMPL | H35: 0 | I35: 0 | J35: 0.9937106918 | K35: 0.006289308176
G36: DEAD | H36: 0 | I36: 0 | J36: 0 | K36: 1

Sheet Scatterplot
